Workbook

Sheet basica
A1: 1/A | B1: B | C1: C | D1: 1/D
A2: 2 | B2: PLANILHA BÁSICA | D2: 2
A3: =A2+1 -> 3 | D3: =D2+1 -> 3
A4: 4 | D4: 4
A5: 5 | B5: E D I T A L | D5: 5
A6: 6 | B6: EDITAL Nº: | C6: 22/2017 | D6: 6
A7: 7 | B7: LOTE: | C7: ÚNICO | D7: 7
A8: 8 | B8: DATA: | C8: 2017-10-08 | D8: 8
A9: 9 | B9: HORA: | C9: 10:00 - brasilia | D9: 9
A10: 10 | B10: LOCAL: | D10: 10
A11: 11 | B11: DATA-BASE | C11: 2017-03-01 | D11: 11
A12: 12 | B12: PRAZO (DIAS) | C12: 365 | D12: 12
A13: 13 | B13: PRAZO (meses) | C13: 12 | D13: 13
A14: 14 | B14: UNIT | D14: 14
A15: 15 | B15: OBRA | D15: 15
A16: 16 | B16: D I V E R S O S | D16: 16
A17: 17 | B17: EMPRESA : | C17: CS SERVIÇOS E LOCAÇÃO DE EQUIPAMENTOS LTDA | D17: 17
A18: 18 | B18: UNID. MONETÁRIA | C18: R $ | D18: 18
A19: 19 | B19: BONIFICAÇÃO | C19: 0.259 | D19: 19
B20: INSUMOS | C20: 0.1535
A21: =A19+1 -> 20 | B21: TAXA (D + J) | C21: 0.12 | D21: =D19+1 -> 20
A22: 21 | D22: 21
A23: 22 | B23: R O D O V I A(S) | D23: 22
A24: 23 | B24: DESCRIÇÃO | D24: 23
A25: 24 | B25: TRECHOS : | D25: 24
A26: 25 | B26: SUB-TRECHOS : | D26: 25
A27: 26 | B27: EXTENSÃO : | D27: 26
A28: 27 | B28: JURISDIÇÃO: | D28: 27
A29: 28 | B29: UNIT | D29: 28
A30: 29 | B30: PNV | D30: 29
A31: 30 | B31: SEGMENTO: | D31: 30
A32: 31 | B32: M Ã O D E O B R A | D32: 31
A33: 32 | B33: SALÁRIO | D33: 526
A34: 33 | B34: SALÁRIO/HORA | D34: 527
A35: 34 | B35: ENC. SOCIAIS (%) | D35: 528
A36: 35 | B36: JORNADA/MÊS (h) | D36: 529
A37: 36 | D37: 530
A38: 37 | D38: 531
A39: 38 | D39: 532
A40: 39 | B40: C O M B U S T Í V E I S | D40: 533
A41: 40 | B41: DIESEL | D41: 534
A42: 41 | B42: ALCOOL | D42: 535
A43: 42 | B43: GASOLINA | D43: 536
A44: 43 | B44: FUEL OIL | D44: 537
A45: 44 | B45: KWH | D45: 538
A46: 45 | D46: 539
A47: 46 | D47: 540
A48: 47 | B48: A T U A L I Z A Ç Ã O (I F G V) | D48: 541
A49: 48 | B49: TABELA (???/94) | D49: 542
A50: 49 | B50: ATUAL (???/94) | D50: 543
A51: 50 | B51: 1º MÊS | D51: 544
A52: 51 | B52: 2º MÊS | D52: 545
A53: 52 | B53: 3º MÊS | D53: 546
A54: 53 | B54: INFLATOR | D54: 547
A55: 54 | D55: 548
A56: 55 | D56: 549
A57: 56 | B57: Q U A D R O S D I V E R S O S | D57: 550
A58: 57 | B58: Identificação da Empresa | D58: 551
A59: 58 | B59: Organiz. Societária | D59: 552
A60: 59 | B60: Rel. Obras Executadas | D60: 553
A61: 60 | B61: Rel. Equipe Técnica | D61: 554
A62: 61 | B62: Curriculum Vitae | D62: 555
A63: 62 | B63: Rel. Obras da Proponente | D63: 556
A64: 63 | B64: Demo. Capac. Financ | D64: 557
A65: 64 | B65: Resumo | D65: 558
A66: 65 | B66: Planilha Orçamento | D66: 559
A67: =A66+1 -> 66 | B67: Composição Preços | D67: =D66+1 -> 560
A68: 67 | B68: Custo Horário Eqptº | D68: 561
A69: 68 | B69: Escala Salarial | D69: 562
A70: 69 | B70: Cronograma | D70: 563
A71: 70 | B71: Prod. Equipe Mecânica | D71: 564
A72: 71 | B72: Rel. de serviços auxiliares | D72: 565
A73: 72 | B73: Relação de Equipamenyo | D73: 566
A74: 73 | D74: 567
A75: 74 | D75: 568
A76: 75 | D76: 569
A77: 76 | D77: 570
A78: 77 | D78: 571
A79: 78 | C79: 08 DE DEZEMBRO 2017 | D79: 572
A80: 79 | B80: CARIMBO | D80: 573
A81: 80 | B81: Nome | C81: GIL DO NASCIMENTO SANTOS | D81: 574
A82: 81 | B82: Título - CREA | C82: RN-26130304432 | D82: 575

Sheet planilha resumida
F3: EDITAL Nº | G3: =basica!C6 -> 22/2017
F4: DATA | G4: =basica!C8 -> 2017-10-08
A6: SISTEMA DE ESGOTAMENTO SANITÁRIO DO MUNICÍPIO DE CANAPI / AL | F6: BDI (Insumos): | H6: 0.1535
A7: PLANILHA RESUMIDA (Data Base: MAR/2017) | F7: BDI (Serviços): | H7: 0.259
A8: Item | B8: CÓDIGO | C8: DESCRIÇÃO | D8: Un. | E8: Quant. | F8: Valor (R$) | H8: Valor Total (R$)
F9: Preço | G9: Custo
A10: I | B10: SERVIÇOS
A11: 1.0 | B11: SERVIÇOS PRELIMINARES / CANTEIRO DE OBRAS | H11: ='Plan. Detalhada Serviços'!F8 -> 669784.34
A12: 2.0 | B12: REDE COLETORA CONVENCIONAL / LINHA DE RECALQUE / EMISSÁRIO FINAL | H12: ='Plan. Detalhada Serviços'!F17 -> 2974131.78
A13: 3.0 | B13: REDE COLETORA CONDOMINIAL | H13: ='Plan. Detalhada Serviços'!F105 -> 90557.42
A14: 4.0 | B14: RAMAIS PREDIAIS | H14: ='Plan. Detalhada Serviços'!F133 -> 342836.79
A15: 5.0 | B15: ESTAÇÕES ELEVATÓRIAS | H15: ='Plan. Detalhada Serviços'!F143 -> 416744.24
A16: 6.0 | B16: ESTRUTURA DE ENTRADA E DAFA'S | H16: ='Plan. Detalhada Serviços'!F224 -> 107306.09
A17: 7.0 | B17: LEITO DE SECAGEM | H17: ='Plan. Detalhada Serviços'!F253 -> 46350.81
A18: 8.0 | B18: LAGOAS FACULTATIVAS | H18: ='Plan. Detalhada Serviços'!F283 -> 780336.84
A19: 9.0 | B19: INSTALAÇÃO ELÉTRICA | H19: ='Plan. Detalhada Serviços'!F341 -> 138758.19
A20: TOTAL GERAL DOS SERVIÇOS (R$) | H20: =SUM(H11:H19) -> 5566806.5
A21: II | B21: MATERIAIS
A22: 1.0 | B22: REDE COLETORA CONVENCIONAL / LINHA DE RECALQUE / EMISSÁRIO FINAL | H22: ='Plan. Detalhada Materiais'!F8 -> 230712.56
A23: 2.0 | B23: REDE COLETORA CONDOMINIAL | H23: ='Plan. Detalhada Materiais'!F24 -> 27183.36
A24: 3.0 | B24: RAMAIS PREDIAIS | H24: ='Plan. Detalhada Materiais'!F27 -> 35054.82
A25: 4.0 | B25: ESTAÇÕES ELEVATÓRIAS (EEE-1/EEE-2) | H25: ='Plan. Detalhada Materiais'!F33 -> 179721.56
A26: 5.0 | B26: ESTRUTURA DE ENTRADA E DAFA'S | H26: ='Plan. Detalhada Materiais'!F116 -> 63931.59
A27: 6.0 | B27: LEITOS DE SECAGEM | H27: ='Plan. Detalhada Materiais'!F150 -> 1161.63
A28: 7.0 | B28: LAGOAS FACULTATIVAS | H28: ='Plan. Detalhada Materiais'!F155 -> 12500.16
A29: 8.0 | B29: Fornecimentos e Instalações Elétricas - EEE - 1 | H29: ='Plan. Detalhada Materiais'!F160 -> 69323.62
A30: 9.0 | B30: Fornecimentos e Instalações Elétricas - EEE - 2 | H30: ='Plan. Detalhada Materiais'!F182 -> 86630.11
A31: 10.0 | B31: Fornecimentos e Instalações Elétricas - ETE | H31: ='Plan. Detalhada Materiais'!F201 -> 3494.2
A32: TOTAL GERAL DOS MATERIAIS (R$): | H32: =SUM(H22:H31) -> 709713.61
A33: TOTAL GERAL DOS SERVIÇOS E MATERIAIS (R$): | H33: =H32+H20 -> 6276520.11
E38: =basica!C81 -> GIL DO NASCIMENTO SANTOS
E39: =basica!C82 -> RN-26130304432

Sheet Plan. Detalhada Serviços
A1: Ministério da Integração Nacional | E1: ='planilha resumida'!F3 -> EDITAL Nº | F1: ='planilha resumida'!G3 -> 22/2017
A2: Companhia de Desenvolvimento dos Vales do São Francisco e do Parnaíba | E2: ='planilha resumida'!F4 -> DATA | F2: ='planilha resumida'!G4 -> 2017-10-08
A3: Área de Revitalização das Bacias Hidrográficas
A4: SISTEMA DE ESGOTAMENTO SANITÁRIO DO MUNICÍPIO DE CANAPI / AL | E4: BDI (Serv.): | F4: 0.259
A5: PLANILHA QUANTITATIVO E ORÇAMENTO DE PROJETO (Data Base: MAR/2017) | E5: BDI (Mat.): | F5: 0.1535
A6: ITEM | B6: DESCRIÇÃO | C6: UNID. | D6: QUANT. | E6: P. UNITÁRIO | F6: P. TOTAL
A7: I | B7: SERVIÇOS
A8: 1.0 | B8: SERVIÇOS PRELIMINARES / CANTEIRO DE OBRAS | E8: Subtotal | F8: =SUM(F9:F16) -> 669784.34
A9: 1.1 | B9: Mobilização de equipamento e pessoas | C9: un | D9: 1 | E9: 14856.02 | F9: =ROUND(D9*E9,2) -> 14856.02
A10: 1.2 | B10: Desmobilização de equipamentos e pessoas | C10: un | D10: 1 | E10: 14856.02 | F10: =ROUND(D10*E10,2) -> 14856.02
A11: 1.3 | B11: EXECUÇÃO DE ESCRITÓRIO EM CANTEIRO DE OBRA EM ALVENARIA, NÃO INCLUSOOBILIÁRIO E EQUIPAMENTOS. AF_02/2016 | C11: m² | D11: 40 | E11: 923.18 | F11: 36927.2
A12: 1.5 | B12: Administração local e Manutenção de canteiro de obras | C12: global | D12: 1 | E12: 522869.47 | F12: 522869.47
A13: 1.6 | B13: Fornecimento de veículo leve (1.4 ou superior), com ar-condicionado para apoio à fiscalização, incluindo despesas com combustível, óleos, manutenção, licenciamento, seguros, impostos | C13: mês | D13: 24 | E13: 2535.92 | F13: 60862.08
A14: 1.7 | B14: Placa de identificação de obra - fornecimento e instalação | C14: m² | D14: 26.4 | E14: 376.57 | F14: 9941.45
A15: 1.8 | B15: Confecção de placa de sinalização totalmente refletiva | C15: m² | D15: 20 | E15: 388.15 | F15: 7763
A16: 1.9 | B16: CERCA C/ 09 FIOS DE ARAME FARPADO 16 BWG 4"x 4", C/ ESTACAS DE CONCRETO PRE-MOLDADAS, C/ PONTA INCLINADA E DIMENSOES DE 0,10 x 0,10 x 3,00m | C16: m | D16: 30 | E16: 56.97 | F16: 1709.1
A17: 2.0 | B17: REDE COLETORA CONVENCIONAL / LINHA DE RECALQUE / EMISSÁRIO FINAL | E17: Subtotal | F17: =SUM(F18:F104)+0.01 -> 2974131.78
A18: 2.1 | B18: SERVIÇOS PRELIMINARES
A19: 2.1.1 | B19: LIMPEZA MANUAL DO TERRENO, INCL. RASPAGEM, JUNTAMENTO E QUEIMA DO MATERIAL | C19: m² | D19: 1160 | E19: 3.84 | F19: =ROUND(D19*E19,2) -> 4454.4
A20: 2.1.2 | B20: DESMATAMENTO, DESTOCAMENTO E LIMPEZA | C20: m² | D20: 1115 | E20: 0.47 | F20: 524.05
A21: 2.1.3 | B21: LIMPEZA DE RUAS APOS EXEC. DE OBRAS EM S.E.S.'s | C21: m² | D21: 4930 | E21: 0.59 | F21: 2908.7
A22: 2.1.4 | B22: LIMPEZA DE REDE COLETORA E EMISSÁRIO FINAL EXISTENTES | C22: m | D22: 10859.01 | E22: 2.82 | F22: 30622.41
A23: 2.1.5 | B23: LIMPEZA DE PV EXISTENTE | C23: un | D23: 147 | E23: 7.72 | F23: 1134.84
A24: 2.1.6 | B24: TESTE DE REDE COLETORA, LINHA DE RECALQUE E EMISSÁRIO FINAL | C24: m | D24: 21498.54 | E24: 2.82 | F24: 60625.88
A25: 2.2 | B25: TRANSITO E SEGURANCA
A26: 2.2.1 | B26: Sinalização Diurna com Tela tapume em pvc - 10 usos | C26: m | D26: 400 | E26: 2.65 | F26: 1060
A27: 2.2.2 | B27: SINALIZACAO DE TRANSITO - NOTURNA | C27: m | D27: 120 | E27: 2.66 | F27: 319.2
A28: 2.2.3 | B28: ESCORAMENTO METALICO DE POSTES C/ ALTURA > 7,00m | C28: un | D28: 3 | E28: 699.76 | F28: 2099.28
A29: 2.2.4 | B29: ESCORAMENTO EM MADEIRA DE MURO OU PAREDE EXISTENTE | C29: m² | D29: 30 | E29: 50.53 | F29: 1515.9
A30: 2.2.5 | B30: PASSADICO EM MADEIRA DE LEI, COM CORRIMAO, P/ PEDESTRES | C30: m² | D30: 14 | E30: 61.99 | F30: 867.86
A31: 2.3 | B31: SERVIÇOS TOPOGRÁFICOS
A32: 2.3.1 | B32: LOCACAO E NIVELAMENTO DE EMISSARIO/REDE COLETORA COM AUXILIO DE EQUIPAMENTO TOPOGRAFICO | C32: m | D32: 6084 | E32: 2.34 | F32: 14236.56
A33: 2.3.2 | B33: LEVANT. CADASTRAL PLANIALT. DE EIXO DE ADUTORA, LINHA DE RECALQUE, EMISSÁRIO E INTERCEPTOR C/ ESTAQ. DE 20 EM 20M; SEÇ.TRANSV., IMPLANT. DE RN, DESENHOS, PLANTAS NA ESC. 1:2000, C/ FAIXA DE 60 METROS | C33: m | D33: 1600 | E33: 2.02 | F33: 3232
A34: 2.4 | B34: SERVIÇOS DE CADASTRO DE OBRAS
A35: 2.4.1 | B35: CADASTRO COMPLETO DE REDE COLETORA DE ESGOTOS DE SISTEMA CONVENCIONAL | C35: m | D35: 19598.1 | E35: 2.02 | F35: 39588.16
A36: 2.4.2 | B36: CADASTRO COMPLETO DE ADUTORA, INTERCEPTOR OU EMISSARIO | C36: m | D36: 1900.44 | E36: 2.02 | F36: 3838.89
A37: 2.5 | B37: MOVIMENTAÇÃO DE TERRA E ROCHA
A38: 2.5.1 | B38: ESCAVAÇÕES DE VALAS
A39: 2.5.1.1 | B39: ESCAVAÇÃO MANUAL DE VALAS. AF_03/2016 | C39: m³ | D39: 110 | E39: 61 | F39: 6710
A40: 2.5.1.2 | B40: ESCAVAÇÃO MECANIZADA DE VALA COM PROFUNDIDADE ATÉ 1,5 M (MÉDIA ENTRE MONTANTE E JUSANTE/UMA COMPOSIÇÃO POR TRECHO) COM RETROESCAVADEIRA (CAPACIDADE DA CAÇAMBA DA RETRO: 0,26 M3 / POTÊNCIA: 88 HP), LARGURA DE 0,8 M A 1,5 M, EM SOLO DE 1A CATEGORIA, LOCAISCOM BAIXO NÍVEL DE INTERFERÊNCIA. AF_01/2015 | C40: m³ | D40: 3632 | E40: 11.01 | F40: 39988.32
A41: 2.5.1.3 | B41: ESCAVAÇÃO MECANIZADA DE VALA COM PROFUNDIDADE MAIOR QUE 1,5 M ATÉ 3,0 M (MÉDIA ENTRE MONTANTE E JUSANTE/UMA COMPOSIÇÃO POR TRECHO) COM RETRO ESCAVADEIRA (CAPACIDADE DA CAÇAMBA DA RETRO: 0,26 M3 / POTÊNCIA: 88 HP), LARGURA DE 0,8 M A 1,5 M, EM SOLO DE 1ª CATEGORIA, LOCAIS COM BAIXO NÍVEL DE INTERFERÊNCIA. AF_01/2015 | C41: m³ | D41: 103.31 | E41: 9.87 | F41: 1019.67
A42: 2.5.1.4 | B42: ESCAV. MECANIZ. DE VALAS - ESGOTO - EM SOLO DE 2a CAT. EXECUTADA ENTRE AS PROFUND. DE 0 A 2,00m | C42: m³ | D42: 1240 | E42: 11.97 | F42: 14842.8
A43: 2.5.1.5 | B43: ESCAV. MECANIZ. DE VALAS - ESGOTO - EM SOLO DE 2a CAT. EXECUTADA ENTRE AS PROFUND. DE 2 A 4,00m | C43: m³ | D43: 74.99 | E43: 13.68 | F43: 1025.86
A44: 2.5.1.6 | B44: Desmonte de rocha dura incluindo perfuração, argamassa expansiva e retirada de material | C44: m³ | D44: 3630 | E44: 389.14 | F44: 1412578.2
A45: 2.5.2 | B45: ESCAVACOES DE POCOS E CAVAS DE FUNDACAO
A46: 2.5.2.1 | B46: ESCAVAÇÃO MANUAL DE VALAS. AF_03/2016 | C46: m³ | D46: 15.44 | E46: 60.99 | F46: 941.69
A47: 2.5.2.2 | B47: ESCAVAÇÃO MECANIZADA DE VALA COM PROFUNDIDADE ATÉ 1,5 M (MÉDIA ENTRE MONTANTE E JUSANTE/UMA COMPOSIÇÃO POR TRECHO) COM RETROESCAVADEIRA (CAPACIDADE DA CAÇAMBA DA RETRO: 0,26 M3 / POTÊNCIA: 88 HP), LARGURA DE 0,8 M A 1,5 M, EM SOLO DE 1A CATEGORIA, LOCAISCOM BAIXO NÍVEL DE INTERFERÊNCIA. AF_01/2015 | C47: m³ | D47: 250.09 | E47: 11 | F47: 2750.99
A48: 2.5.2.3 | B48: ESCAV. MECANIZ. DE POCOS E CAVAS DE FUNDACAO EM SOLO DE 2a CAT. EXECUTADA ENTRE AS PROFUND. DE 0 A 2,00m | C48: m³ | D48: 22 | E48: 11.96 | F48: 263.12
A49: 2.5.2.4 | B49: ESCAVACAO MECANICA DE VALA EM MATERIAL 2A. CATEGORIA DE 2,01 ATE 4,00M DE PROFUNDIDADE COM UTILIZACAO DE ESCAVADEIRA HIDRAULICA | C49: m³ | D49: 21.8 | E49: 13.67 | F49: 298.01
A50: 2.5.2.5 | B50: Desmonte de rocha dura incluindo perfuração, argamassa expansiva e retirada de material | C50: m³ | D50: 286 | E50: 389.14 | F50: 111294.04
A51: 2.5.3 | B51: ATERROS DE VALAS / POCOS / CAVAS DE FUNDACAOS
A52: 2.5.3.1 | B52: REATERRO MECANIZADO DE VALA COM RETROESCAVADEIRA (CAPACIDADE DA CAÇAMB A DA RETRO: 0,26 M³ / POTÊNCIA: 88 HP), LARGURA ATÉ 0,8 M, PROFUNDIDADE ATÉ 1,5 M, COM SOLO (SEM SUBSTITUIÇÃO) DE 1ª CATEGORIA EM LOCAIS COM BAIXO NÍVEL DE INTERFERÊNCIA. AF_04/2016 | C52: m³ | D52: 4808 | E52: 19.2794 | F52: 92695.36
A53: 2.5.3.2 | B53: ATERRO MECANIZADO DE VALA COM RETROESCAVADEIRA (CAPACIDADE DA CAÇAMBA DA RETRO: 0,26 M³ / POTÊNCIA: 88 HP), LARGURA ATÉ 0,8 M, PROFUNDIDADE ATÉ 1,5 M, COM SOLO ARGILO-ARENOSO. AF_05/2016 | C53: m³ | D53: 1437 | E53: 31.24 | F53: 44891.88
A54: 2.5.4 | B54: ENVOLTORIAS E BERCOS P/ VALAS
A55: 2.5.4.1 | B55: PREPARO DE FUNDO DE VALA (LASTRO) COM LARGURA MENOR QUE 1,5 M, COM CAMADA DE AREIA, LANÇAMENTO MECANIZADO, EM LOCAL COM NÍVEL BAIXO DE INTERFERÊNCIA. AF_06/2016 | C55: m³ | D55: 1696 | E55: 158.18 | F55: 268273.28
A56: 2.5.4.2 | B56: PREPARO DE FUNDO DE VALA (LASTRO) COM LARGURA MENOR QUE 1,5 M, COM CAMADA DE BRITA, LANÇAMENTO MECANIZADO, EM LOCAL COM NÍVEL BAIXO DE INTERFERÊNCIA. AF_06/2016 | C56: m³ | D56: 12 | E56: 192.74 | F56: 2312.88
A57: 2.6 | B57: TRANSPORTE DE SOLO, ROCHA E AGREGADOS
A58: 2.6.1 | B58: CARGA E DESCARGA MECANIZADAS DE ENTULHO EM CAMINHAO BASCULANTE 6 M3 | C58: m³ | D58: 3916 | E58: 4.1642 | F58: 16307.01
A59: 2.6.2 | B59: CARGA E DESCARGA MECANICA DE SOLO UTILIZANDO CAMINHAO BASCULANTE 6,0M3/16T E PA CARREGADEIRA SOBRE PNEUS 128 HP, CAPACIDADE DA CAÇAMBA 1,7 A 2,8 M3, PESO OPERACIONAL 11632 KG | C59: m³ | D59: 2718.77 | E59: 1.82 | F59: 4948.16
A60: 2.6.3 | B60: ESPALHAMENTO DE MATERIAL EM BOTA FORA, COM UTILIZACAO DE TRATOR DE ESTEIRAS DE 165 HP | C60: m³ | D60: 3916 | E60: 1.1 | F60: 4307.6
A61: 2.6.4 | B61: ESPALHAMENTO DE MATERIAL DE 1A CATEGORIA COM TRATOR DE ESTEIRA COM 153HP | C61: m³ | D61: 1827 | E61: 2.19 | F61: 4001.13
A62: 2.6.5 | B62: TRANSPORTE COM CAMINHÃO BASCULANTE DE 10 M3, EM VIA URBANA EM LEITO NATURAL (UNIDADE: M3XKM). AF_04/2016 (Rocha) | C62: m³xkm | D62: 11748 | E62: 1.52 | F62: 17856.96
A63: 2.6.6 | B63: TRANSPORTE COM CAMINHÃO BASCULANTE DE 10 M3, EM VIA URBANA EM LEITO NATURAL (UNIDADE: M3XKM). AF_04/2016 (Solo) | C63: m³xkm | D63: 8156.31 | E63: 1.52 | F63: 12397.59
A64: 2.7 | B64: ESCORAMENTO
A65: 2.7.1 | B65: ESCORAMENTO DE VALA, TIPO PONTALETEAMENTO, COM PROFUNDIDADE DE 0 A 1,5M, LARGURA MENOR QUE 1,5 M, EM LOCAL COM NÍVEL BAIXO DE INTERFERÊNCIA. AF_06/2016 | C65: m² | D65: 228.5 | E65: 16.05 | F65: 3667.43
A66: 2.7.2 | B66: ESCORAMENTO DE VALA, TIPO DESCONTÍNUO, COM PROFUNDIDADE DE 0 A 1,5 M,LARGURA MENOR QUE 1,5 M, EM LOCAL COM NÍVEL BAIXO DE INTERFERÊNCIA. AF_06/2016 | C66: m² | D66: 799 | E66: 27.77 | F66: 22188.23
A67: 2.7.3 | B67: Estrutura de escoramento contínua | C67: m² | D67: 160 | E67: 28.28 | F67: 4524.8
A68: 2.8 | B68: ESGOTAMENTO
A69: 2.8.1 | B69: ESGOTAMENTO COM MOTO-BOMBA AUTOESCOVANTE | C69: H | D69: 300 | E69: 7.48 | F69: 2244
A70: 2.9 | B70: CAIXAS, TAMPAS E POCOS DE VISITA
A71: 2.9.1 | B71: PV EM ANEL DE CONCRETO PRE-MOLDADO DN=0,60m, EM PROFUND. ATE 1,20m, C/ FORNEC. MAT., S/ FORNEC. E ASSENT.DE TAMPAO | C71: un | D71: 28 | E71: 1180.91 | F71: 33065.48
A72: 2.9.2 | B72: PV EM ANEL DE CONCRETO PRE-MOLDADO DN=0,80m, C/ LAJE DE RED., EM PROFUND. ATE 1,80m, C/ FORNEC.DO MAT., S/ FORNEC. E ASSENT. DE TAMPAO | C72: un | D72: 22 | E72: 1397.02 | F72: 30734.44
A73: 2.9.3 | B73: PV EM ANEL DE CONCRETO PRE-MOLDADO DN=1,10m, C/ LAJE DE RED. E CHAMINE , ENTRE PROFUND. DE 1,81 E 3,50m, C/ FORNEC. MAT., S/ FORNEC. E ASSENT. DE TAMPAO | C73: un | D73: 9 | E73: 2132.68 | F73: 19194.12
A74: 2.9.4 | B74: PV EM ANEL DE CONCRETO PRE-MOLDADO DN=1,10m, C/ LAJE DE RED. E CHAMINE, ENTRE PROFUND. DE 3,51 E 6,00m, C/ FORNEC. MAT., S/ FORNEC. E ASSENT. DE TAMPAO | C74: un | D74: 3 | E74: 3214 | F74: 9642
A75: 2.9.5 | B75: ASSENTAMENTO DE TAMPAO DE FERRO FUNDIDO 600 MM | C75: un | D75: 71 | E75: 80.33 | F75: 5703.43
A76: 2.9.6 | B76: ASSENT. DE TUBO DE QUEDA EXTERNO (TIPOS I E II), C/ ENVOLTORIA DE CONCRETO, C/ FORNECIMENTO DO MAT. HIDRAULICO | C76: un | D76: 11 | E76: 1326.01 | F76: 14586.11
A77: 2.10 | B77: ASSENT. MONTAGEM E REMOÇAO DE TUBULACOES, PEÇAS, CONEXOES, VALVULAS E APARELHOS
A78: 2.10.1 | B78: ASSENTAMENTO DE TUBO DE PVC PARA REDE COLETORA DE ESGOTO DE PAREDE MACIÇA, DN 150 MM, JUNTA ELÁSTICA, INSTALADO EM LOCAL COM NÍVEL BAIXO DE INTERFERÊNCIAS (NÃO INCLUI FORNECIMENTO). AF_06/2015 | C78: m | D78: 4308.59 | E78: 3.66 | F78: 15769.44
A79: 2.10.2 | B79: ASSENTAMENTO DE TUBO DE PVC PARA REDE COLETORA DE ESGOTO DE PAREDE MACIÇA, DN 200 MM, JUNTA ELÁSTICA, INSTALADO EM LOCAL COM NÍVEL BAIXO DE INTERFERÊNCIAS (NÃO INCLUI FORNECIMENTO). AF_06/2015 | C79: m | D79: 220 | E79: 4.33 | F79: 952.6
A80: 2.10.3 | B80: ASSENTAMENTO DE TUBO FOFO COM JUNTA ELASTICA - DN 100 - INCLUSIVE TRANSPORTE | C80: m | D80: 470.44 | E80: 4.54 | F80: 2135.8
A81: 2.10.4 | B81: ASSENTAMENTO DE TUBO FOFO COM JUNTA ELASTICA - DN 150 - INCLUSIVE TRANSPORTE | C81: m | D81: 68.6 | E81: 7.45 | F81: 511.07
A82: 2.10.5 | B82: ASSENTAMENTO DE TUBO FOFO COM JUNTA ELASTICA - DN 200 - INCLUSIVE TRANSPORTE | C82: m | D82: 1017 | E82: 9.54 | F82: 9702.18
A83: 2.11 | B83: TRANSPORTE DE TUBOS, PEÇAS E CONEXOES
A84: 2.11.1 | B84: CARGA E DESCARGA DE TUBOS PVC RIG. / RPVC, DN ATE 350 mm | C84: m | D84: 4528.59 | E84: 2.33 | F84: 10551.61
A85: 2.11.2 | B85: CARGA E DESCARGA DE TUBO DE F-F- DUCTIL OU AÇO CARBONO, P/DN ATE 300mm. | C85: t | D85: 38 | E85: 93.09 | F85: =ROUND(D85*E85,2) -> 3537.42
A86: 2.12 | B86: DEMOLIÇAO E RECOMPOSIÇAO DE PAVIMENTOS
A87: 2.12.1 | B87: RETIRADA, LIMPEZA E REASSENTAMENTO DE PARALELEPIPEDO SOBRE COLCHAO DEPO DE PEDRA ESPESSURA 10CM, REJUNTADO COM ARGAMASSA TRACO 1:3 (CIMENTOE AREIA), CONSIDERANDO APROVEITAMENTO DO PARALELEPIPEDO | C87: m² | D87: 6093 | E87: 64.38 | F87: =ROUND(D87*E87,2) -> 392267.34
A88: 2.12.2 | B88: DEMOLIÇÃO DE PAVIMENTAÇÃO ASFÁLTICA COM UTILIZAÇÃO DE MARTELO PERFURADOR, ESPESSURA ATÉ 15 CM, EXCLUSIVE CARGA E TRANSPORTE | C88: m³ | D88: 2174.67 | E88: 10.79 | F88: 23464.69
A89: 2.12.3 | B89: CONCRETO BETUMINOSO USINADO A QUENTE COM CAP 50/70, BINDER, INCLUSO USINAGEM E APLICACAO, EXCLUSIVE TRANSPORTE | C89: t | D89: 260.96 | E89: 338.13 | F89: 88238.4
A90: 2.12.4 | B90: TRANSPORTE DE MATERIAL ASFALTICO, COM CAMINHÃO COM CAPACIDADE DE 20000L EM RODOVIA PAVIMENTADA PARA DISTÂNCIAS MÉDIAS DE TRANSPORTE IGUAL OU INFERIOR A 100 KM. AF_02/2016 | C90: TXKM | D90: 19415.42 | E90: 1.49 | F90: 28928.98
A91: 2.13 | B91: ENSECADEIRAS P/ PEQUENAS OBRAS
A92: 2.13.1 | B92: COMPACTACAO DE ATERRO P/ ENSECADEIRAS C/ SOLO, INCL. DESTORROAMENTO, UMIDECIM., HOMOGENEIZ. E COMPACT. C/ ROLO | C92: m³ | D92: 200 | E92: 5.5 | F92: 1100
A93: 2.13.2 | B93: CARGA E DESCARGA MECANICA DE SOLO UTILIZANDO CAMINHAO BASCULANTE 6,0M3/16T E PA CARREGADEIRA SOBRE PNEUS 128 HP, CAPACIDADE DA CAÇAMBA 1,7 A 2,8 M3. | C93: m³ | D93: 200 | E93: 1.82 | F93: 364
A94: 2.13.3 | B94: TRANSPORTE COM CAMINHÃO BASCULANTE DE 10 M3, EM VIA URBANA EM LEITO NATURAL (UNIDADE: M3XKM). AF_04/2016 | C94: m³xkm | D94: 200 | E94: 1.52 | F94: 304
A95: 2.14 | B95: ESTRUTURAS E FUNDACOES
A96: 2.14.1 | B96: CONCRETO FCK = 15MPA, TRAÇO 1:3,4:3,5 (CIMENTO/ AREIA MÉDIA/ BRITA 1)- PREPARO MECÂNICO COM BETONEIRA 400 L. AF_07/2016 | C96: m³ | D96: 7.08 | E96: 318.33 | F96: 2253.78
A97: 2.14.2 | B97: CONCRETO FCK = 25MPA, TRAÇO 1:2,3:2,7 (CIMENTO/ AREIA MÉDIA/ BRITA 1) - PREPARO MECÂNICO COM BETONEIRA 400 L. AF_07/2016 | C97: m³ | D97: 31.76 | E97: 348.78 | F97: 11077.25
A98: 2.14.3 | B98: CONCRETO FCK = 30MPA, TRAÇO 1:2,1:2,5 (CIMENTO/ AREIA MÉDIA/ BRITA 1) - PREPARO MECÂNICO COM BETONEIRA 400 L. AF_07/2016 | C98: m³ | D98: 2.52 | E98: 359.84 | F98: 906.8
A99: 2.14.4 | B99: LANCAMENTO/APLICACAO MANUAL DE CONCRETO EM FUNDACOES | C99: m³ | D99: 41.36 | E99: 102.48 | F99: 4238.57
A100: 2.14.5 | B100: ARMAÇÃO DE FUNDAÇÕES E ESTRUTURAS DE CONCRETO ARMADO, EXCETO VIGAS, PILARES E LAJES (DE EDIFÍCIOS DE MÚLTIPLOS PAVIMENTOS, EDIFICAÇÃO TÉRREAOU SOBRADO), UTILIZANDO AÇO CA-50 DE 10.0 MM - MONTAGEM. AF_12/2015 | C100: kg | D100: 47.65 | E100: 8.9 | F100: 424.09
A101: 2.14.6 | B101: FABRICAÇÃO, MONTAGEM E DESMONTAGEM DE FÔRMA DE LAJE MACIÇA COM ÁREA MÉDIA MENOR OU IGUAL A 20 M², PÉ-DIREITO SIMPLES, EM CHAPA DE MADEIRA COMPENSADA RES., 2 UTILIZ. | C101: m² | D101: 89.15 | E101: 38.23 | F101: 3408.2
A102: 2.15 | B102: DRENAGEM, CONTENCOES E REFORCO DE SOLO
A103: 2.15.1 | B103: EXEC. DE BOCA DE BUEIRO EM CONCRETO CICLOPICO C/ 30% DE PEDRA DE MAO, fck=11 MPa, P/ BUEIRO C/ DN=400mm | C103: un | D103: 1 | E103: 927.79 | F103: 927.79
A104: 2.15.2 | B104: ENROCAMENTO C/ PEDRA DE MAO, C/ ARRUMACAO MANUAL, INCL. FORNEC. DO MATERIAL | C104: m³ | D104: 2 | E104: 392.52 | F104: 785.04
A105: 3.0 | B105: REDE COLETORA CONDOMINIAL | E105: Subtotal | F105: =SUM(F106:F132) -> 90557.42
A106: 3.1 | B106: MOVIMENTO DE TERRA E ROCHA
A107: 3.1.1 | B107: ESCAVAÇÃO MANUAL DE VALAS. AF_03/2016 | C107: m³ | D107: 129.32 | E107: 61 | F107: =ROUND(D107*E107,2) -> 7888.52
A108: 3.1.2 | B108: ESCAVAÇÃO MECANIZADA DE VALA COM PROFUNDIDADE ATÉ 1,5 M (MÉDIA ENTRE MONTANTE E JUSANTE/UMA COMPOSIÇÃO POR TRECHO) COM RETROESCAVADEIRA (CAPACIDADE DA CAÇAMBA DA RETRO: 0,26 M3 / POTÊNCIA: 88 HP), LARGURA DE 0,8 M A 1,5 M, EM SOLO DE 1A CATEGORIA, LOCAISCOM BAIXO NÍVEL DE INTERFERÊNCIA. AF_01/2015 | C108: m³ | D108: 109.15 | E108: 11.0074 | F108: 1201.46
A109: 3.1.3 | B109: ESCAV. MECANIZ. DE VALAS - ESGOTO - EM SOLO DE 2a CAT. EXECUTADA ENTRE AS PROFUND. DE 0 A 2,00m | C109: m³ | D109: 169.79 | E109: 11.97 | F109: 2032.39
A110: 3.1.4 | B110: Desmonte de rocha dura incluindo perfuração, argamassa expansiva e retirada de material | C110: m³ | D110: 71 | E110: 389.14 | F110: 27628.94
A111: 3.1.5 | B111: REATERRO MECANIZADO DE VALA COM RETROESCAVADEIRA (CAPACIDADE DA CAÇAMB A DA RETRO: 0,26 M³ / POTÊNCIA: 88 HP), LARGURA ATÉ 0,8 M, PROFUNDIDADE ATÉ 1,5 M, COM SOLO (SEM SUBSTITUIÇÃO) DE 1ª CATEGORIA EM LOCAIS COM BAIXO NÍVEL DE INTERFERÊNCIA. AF_04/2016 | C111: m³ | D111: 189.96 | E111: 19.28 | F111: 3662.43
A112: 3.1.6 | B112: ATERRO MECANIZADO DE VALA COM RETROESCAVADEIRA (CAPACIDADE DA CAÇAMBA DA RETRO: 0,26 M³ / POTÊNCIA: 88 HP), LARGURA ATÉ 0,8 M, PROFUNDIDADE ATÉ 1,5 M, COM SOLO ARGILO-ARENOSO. AF_05/2016 | C112: m³ | D112: 78.38 | E112: 31.24 | F112: 2448.59
A113: 3.1.7 | B113: PREPARO DE FUNDO DE VALA (LASTRO) COM LARGURA MENOR QUE 1,5 M, COM CAMADA DE AREIA, LANÇAMENTO MECANIZADO, EM LOCAL COM NÍVEL BAIXO DE INTERFERÊNCIA. AF_06/2016 | C113: m³ | D113: 198.08 | E113: 158.18 | F113: 31332.29
A114: 3.2 | B114: TRANSPORTE DE SOLO, ROCHA E AGREGADOS
A115: 3.2.1 | B115: CARGA E DESCARGA MECANIZADAS DE ENTULHO EM CAMINHAO BASCULANTE 6 M3 | C115: m³ | D115: 71 | E115: 4.16 | F115: 295.36
A116: 3.2.2 | B116: CARGA E DESCARGA MECANICA DE SOLO UTILIZANDO CAMINHAO BASCULANTE 6,0M3/16T E PA CARREGADEIRA SOBRE PNEUS 128 HP, CAPACIDADE DA CAÇAMBA 1,7 A 2,8 M3, PESO OPERACIONAL 11632 KG | C116: m³ | D116: 297.13 | E116: 1.82 | F116: 540.78
A117: 3.2.3 | B117: ESPALHAMENTO DE MATERIAL EM BOTA FORA, COM UTILIZACAO DE TRATOR DE ESTEIRAS DE 165 HP | C117: m³ | D117: 71 | E117: 1.1 | F117: 78.1
A118: 3.2.4 | B118: ESPALHAMENTO DE MATERIAL DE 1A CATEGORIA COM TRATOR DE ESTEIRA COM 153HP | C118: m³ | D118: 218.3 | E118: 2.19 | F118: 478.08
A119: 3.2.5 | B119: TRANSPORTE COM CAMINHÃO BASCULANTE DE 10 M3, EM VIA URBANA EM LEITO NATURAL (UNIDADE: M3XKM). AF_04/2016 (Rocha) | C119: m³xkm | D119: 213 | E119: 1.52 | F119: 323.76
A120: 3.2.6 | B120: TRANSPORTE COM CAMINHÃO BASCULANTE DE 10 M3, EM VIA URBANA EM LEITO NATURAL (UNIDADE: M3XKM). AF_04/2016 (Solo) | C120: m³xkm | D120: 891.39 | E120: 1.52 | F120: 1354.91
A121: 3.3 | B121: ESTRUTURAS E FUNDACOES
A122: 3.3.1 | B122: CONCRETO FCK = 15MPA, TRAÇO 1:3,4:3,5 (CIMENTO/ AREIA MÉDIA/ BRITA 1)- PREPARO MECÂNICO COM BETONEIRA 400 L. AF_07/2016 | C122: m³ | D122: 1.53 | E122: 318.33 | F122: 487.04
A123: 3.3.2 | B123: LANCAMENTO/APLICACAO MANUAL DE CONCRETO EM FUNDACOES | C123: m³ | D123: 1.53 | E123: 102.48 | F123: 156.79
A124: 3.4 | B124: CAIXAS, TAMPAS E POCOS DE VISITA
A125: 3.4.1 | B125: Caixa de concreto armado pré-moldado, p/ ligação predial de esgoto sanitário, e=0,07 m, secao interna de 0,40 X 0,54m E 0,41 m <= h < =0,80m, s/ fornecimento e assentamento de tampa | C125: un | D125: 55 | E125: 77.27 | F125: 4249.85
A126: 3.4.2 | B126: FORNEC. E ASSENT. DE TAMPA RETANGULAR DE CONCRETO ARMADO P/ CAIXA DE INSPECAO SANITARIA (59 X 45cm) e= 7cm | C126: un | D126: 55 | E126: 29.92 | F126: 1645.6
A127: 3.5 | B127: ASSENT. MONTAGEM E REMOÇAO DE TUBULACOES, PEÇAS, CONEXOES, VALVULAS E APARELHOS
A128: 3.5.1 | B128: ASSENTAMENTO DE TUBO DE PVC PARA REDE COLETORA DE ESGOTO DE PAREDE MACIÇA, DN 150 MM, JUNTA ELÁSTICA, INSTALADO EM LOCAL COM NÍVEL BAIXO DE INTERFERÊNCIAS (NÃO INCLUI FORNECIMENTO). AF_06/2015 | C128: m | D128: 727 | E128: 3.66 | F128: 2660.82
A129: 3.6 | B129: TRANSPORTE DE TUBOS, PEÇAS E CONEXOES
A130: 3.6.1 | B130: CARGA E DESCARGA DE TUBOS PVC RIG. / RPVC, DN ATE 350 mm | C130: m | D130: 727 | E130: 2.33 | F130: 1693.91
A131: 3.7 | B131: LIGAÇOES PREDIAIS DE ESGOTO
A132: 3.7.1 | B132: EXECUÇAO DE LIGAÇAO PREDIAL CONDOMINIAL,EM RAMAL DE DESCARGA EXISTENTE, C/DN 100 A 150MM ,S/FORNECIMENTO DO MAT. HIDRAULICO | C132: un | D132: 60 | E132: 6.63 | F132: 397.8
A133: 4.0 | B133: RAMAIS PREDIAIS | E133: Subtotal | F133: =SUM(F134:F142) -> 342836.79
A134: 4.1 | B134: CAIXAS, TAMPAS E POCOS DE VISITA
A135: 4.1.1 | B135: Caixa de concreto armado pré-moldado, p/ ligação predial de esgoto sanitário, e=0,07 m, secao interna de 0,40 X 0,54m, h = 0,40m, s/ fornecimento e assentamento de tampa | C135: un | D135: 426 | E135: 41.58 | F135: =ROUND(D135*E135,2) -> 17713.08
A136: 4.1.2 | B136: Caixa de concreto armado pré-moldado, p/ ligação predial de esgoto sanitário, e=0,07 m, secao interna de 0,40 X 0,54m E 0,41 m <= h < =0,80m, s/ fornecimento e assentamento de tampa | C136: un | D136: 236 | E136: 77.27 | F136: 18235.72
A137: 4.1..3 | B137: Caixa de concreto armado pré-moldado, p/ ligação predial de esgoto sanitário, e=0,07 m, secao interna de 0,40 X 0,54m E 0,81 m <= h < =1,20m, s/ fornecimento e assentamento de tampa | C137: un | D137: 49 | E137: 108.49 | F137: 5316.01
A138: 4.1.4 | B138: FORNEC. E ASSENT. DE TAMPA RETANGULAR DE CONCRETO ARMADO P/ CAIXA DE INSPECAO SANITARIA (59 X 45cm) e= 7cm | C138: un | D138: 711 | E138: 29.92 | F138: 21273.12
A139: 4.2 | B139: LIGAÇOES PREDIAIS DE ESGOTO
A140: 4.2.1 | B140: EXECUÇAO DE RAMAL PREDIAL P/ESGOTO, EM PAV. C/ PARALELEPIPEDO/PEDRA IRREGULAR, DN 100mm | C140: m | D140: 2754 | E140: 79.87 | F140: =ROUND(D140*E140,2) -> 219961.98
A141: 4.2.2 | B141: EXECUÇAO DE RAMAL PREDIAL P/ESGOTO,EM TERRENO NATURAL,DN 100mm | C141: m | D141: 1130 | E141: 51.08 | F141: 57720.4
A142: 4.2.3 | B142: TAMPONAMENTO DO RAMAL DOMICILIAR, C/ PASTILHA DE ARGAMASSA, INCL. FORNEC. DO MAT. | C142: un | D142: 711 | E142: 3.68 | F142: 2616.48
A143: 5.0 | B143: ESTAÇÕES ELEVATÓRIAS E TRATAMENTO | E143: Subtotal | F143: =SUM(F144:F223) -> 416744.24
A144: 5.1 | B144: SERVICOS PRELIMINARES
A145: 5.1.1 | B145: LIMPEZA MANUAL DO TERRENO, INCL. RASPAGEM, JUNTAMENTO E QUEIMA DO MATERIAL | C145: m² | D145: 372.55 | E145: 3.84 | F145: =ROUND(D145*E145,2) -> 1430.59
A146: 5.2 | B146: TRANSITO E SEGURANCA
A147: 5.2.1 | B147: TAPUME EM CHAPA DE MADEIRA COMPENSADA P/ ISOLAR O LOCAL DAS OBRAS, INCL. FORNEC., INSTAL. E PINTURA PADRAO CODEVASF | C147: m² | D147: 126 | E147: 58.31 | F147: =ROUND(D147*E147,2) -> 7347.06
A148: 5.3 | B148: SERVICOS DE CADASTRO DE OBRAS
A149: 5.3.1 | B149: CADASTRO DE OBRAS CIVIS | C149: m² | D149: 168.69 | E149: 26.54 | F149: =ROUND(D149*E149,2) -> 4477.03
A150: 5.3.2 | B150: GABARITO P/ EDIFICACOES | C150: m² | D150: 114.55 | E150: 11.62 | F150: 1331.07
A151: 5.4 | B151: MOVIMENTO DE TERRA E ROCHA
A152: 5.4.1 | B152: ESCAVACOES DE POCOS E CAVAS DE FUNDACAO
A153: 5.4.1.1 | B153: ESCAVAÇÃO MANUAL DE POÇOS E VALAS. AF_03/2016 | C153: m³ | D153: 37.35 | E153: 61 | F153: =ROUND(D153*E153,2) -> 2278.35
A154: 5.4.1.2 | B154: ESCAVAÇÃO MECANIZADA DE VALA COM PROFUNDIDADE ATÉ 1,5 M (MÉDIA ENTRE MONTANTE E JUSANTE/UMA COMPOSIÇÃO POR TRECHO) COM RETROESCAVADEIRA (CAPACIDADE DA CAÇAMBA DA RETRO: 0,26 M3 / POTÊNCIA: 88 HP), LARGURA DE 0,8 M A 1,5 M, EM SOLO DE 1A CATEGORIA, LOCAISCOM BAIXO NÍVEL DE INTERFERÊNCIA. AF_01/2015 | C154: m³ | D154: 3 | E154: 11.01 | F154: 33.03
A155: 5.4.1.3 | B155: ESCAVACAO MECANICA DE VALA EM MATERIAL DE 2A. CATEGORIA ATE 2 M DE PROFUNDIDADE COM UTILIZACAO DE ESCAVADEIRA HIDRAULICA | C155: m³ | D155: 30.4 | E155: 11.97 | F155: 363.89
A156: 5.4.1.4 | B156: Desmonte de rocha dura incluindo perfuração, argamassa expansiva e retirada de material | C156: m³ | D156: 134 | E156: 389.14 | F156: 52144.76
A157: 5.4.2 | B157: ATERROS DE VALAS / POCOS / CAVAS DE FUNDACAO
A158: 5.4.2.1 | B158: ATERRO MECANIZADO DE VALA COM RETROESCAVADEIRA (CAPACIDADE DA CAÇAMBA DA RETRO: 0,26 M³ / POTÊNCIA: 88 HP), LARGURA ATÉ 0,8 M, PROFUNDIDADE ATÉ 1,5 M, COM SOLO ARGILO-ARENOSO. AF_05/2016 | C158: m³ | D158: 34.3 | E158: 31.24 | F158: 1071.53
A159: 5.4.2.2 | B159: REATERRO MECANIZADO DE VALA COM RETROESCAVADEIRA (CAPACIDADE DA CAÇAMB A DA RETRO: 0,26 M³ / POTÊNCIA: 88 HP), LARGURA ATÉ 0,8 M, PROFUNDIDADE ATÉ 1,5 M, COM SOLO (SEM SUBSTITUIÇÃO) DE 1ª CATEGORIA EM LOCAIS COM BAIXO NÍVEL DE INTERFERÊNCIA. AF_04/2016 | C159: m³ | D159: 74.83 | E159: 19.28 | F159: 1442.72
A160: 5.5 | B160: TRANSPORTE DE SOLO, ROCHA E AGREGADOS
A161: 5.5.1 | B161: CARGA E DESCARGA MECANIZADAS DE ENTULHO EM CAMINHAO BASCULANTE 6 M3 (Rocha) | C161: m³ | D161: 134 | E161: 4.16 | F161: 557.44
A162: 5.5.2 | B162: CARGA E DESCARGA MECANICA DE SOLO UTILIZANDO CAMINHAO BASCULANTE 6,0M3/16T E PA CARREGADEIRA SOBRE PNEUS 128 HP, CAPACIDADE DA CAÇAMBA 1,7 A 2,8 M3, PESO OPERACIONAL 11632 KG | C162: m³ | D162: 34.3 | E162: 1.82 | F162: 62.43
A163: 5.5.3 | B163: ESPALHAMENTO DE MATERIAL EM BOTA FORA, COM UTILIZACAO DE TRATOR DE ESTEIRAS DE 165 HP | C163: m³ | D163: 134 | E163: 1.1 | F163: 147.4
A164: 5.5.4 | B164: ESPALHAMENTO DE MATERIAL DE 1A CATEGORIA COM TRATOR DE ESTEIRA COM 153HP | C164: m³ | D164: 9.04 | E164: 2.19 | F164: 19.8
A165: 5.5.5 | B165: TRANSPORTE COM CAMINHÃO BASCULANTE DE 10 M3, EM VIA URBANA EM LEITO NATURAL (UNIDADE: M3XKM). AF_04/2016 (Rocha) | C165: m³xkm | D165: 402 | E165: 1.52 | F165: 611.04
A166: 5.5.6 | B166: TRANSPORTE COM CAMINHÃO BASCULANTE DE 10 M3, EM VIA URBANA EM LEITO NATURAL (UNIDADE: M3XKM). AF_04/2016 (Solo) | C166: m³xkm | D166: 102.9 | E166: 1.52 | F166: 156.41
A167: 5.6 | B167: ESCORAMENTO
A168: 5.6.1 | B168: ESCORAMENTO CONTINUO C/ ESTACAS METALICAS | C168: m² | D168: 40 | E168: 57.99 | F168: 2319.6
A169: 5.7 | B169: ESGOTAMENTO
A170: 5.7.1 | B170: ESGOTAMENTO COM MOTO-BOMBA AUTOESCOVANTE | C170: h | D170: 221 | E170: 7.48 | F170: 1653.08
A171: 5.8 | B171: ESTRUTURAS E FUNDACOES
A172: 5.8.1 | B172: CONCRETO FCK = 15MPA, TRAÇO 1:3,4:3,5 (CIMENTO/ AREIA MÉDIA/ BRITA 1)- PREPARO MECÂNICO COM BETONEIRA 400 L. AF_07/2016 | C172: m³ | D172: 1.79 | E172: 318.33 | F172: 569.81
A173: 5.8.2 | B173: CONCRETO FCK = 30MPA, TRAÇO 1:2,1:2,5 (CIMENTO/ AREIA MÉDIA/ BRITA 1) - PREPARO MECÂNICO COM BETONEIRA 400 L. AF_07/2016 | C173: m³ | D173: 53.55 | E173: 359.84 | F173: 19269.43
A174: 5.8.3 | B174: LANCAMENTO/APLICACAO MANUAL DE CONCRETO EM FUNDACOES | C174: m³ | D174: 55.34 | E174: 102.48 | F174: 5671.24
A175: 5.8.4 | B175: ARMAÇÃO DE FUNDAÇÕES E ESTRUTURAS DE CONCRETO ARMADO, EXCETO VIGAS, PILARES E LAJES (DE EDIFÍCIOS DE MÚLTIPLOS PAVIMENTOS, EDIFICAÇÃO TÉRREAOU SOBRADO), UTILIZANDO AÇO CA-50 DE 10.0 MM - MONTAGEM. AF_12/2015 | C175: kg | D175: 3224.63 | E175: 8.9 | F175: 28699.21
A176: 5.8.5 | B176: FABRICAÇÃO, MONTAGEM E DESMONTAGEM DE FÔRMA DE LAJE MACIÇA COM ÁREA MÉDIA MENOR OU IGUAL A 20 M², PÉ-DIREITO SIMPLES, EM CHAPA DE MADEIRA COMPENSADA RES., 2 UTILIZ. | C176: m² | D176: 17.86 | E176: 38.23 | F176: 682.79
A177: 5.8.6 | B177: Forma curva para estruturas, em compensado resinado de 10mm , 02 usos, inclusive escoramento | C177: m² | D177: 266.88 | E177: 103.12 | F177: 27520.67
A178: 5.8.7 | B178: ESCORAMENTO FORMAS H=3,50 A 4,00 M, COM MADEIRA DE 3A QUALIDADE, NAO APARELHADA, APROVEITAMENTO TABUAS 3X E PRUMOS 4X. | C178: m³ | D178: 89.34 | E178: 18.01 | F178: 1609.01
A179: 5.9 | B179: CAIXAS, TAMPAS E POCOS DE VISITA
A180: 5.9.1 | B180: PV EM ANEL DE CONCRETO PRE-MOLDADO DN=1,10m, C/ LAJE DE RED. E CHAMINE , ENTRE PROFUND. DE 1,81 E 3,50m, C/ FORNEC. MAT., S/ FORNEC. E ASSENT. DE TAMPAO | C180: un | D180: 1 | E180: 2132.68 | F180: 2132.68
A181: 5.9.2 | B181: PV EM ANEL DE CONCRETO PRE-MOLDADO DN=1,10m, C/ LAJE DE RED. E CHAMINE, ENTRE PROFUND. DE 3,51 E 6,00m, C/ FORNEC. MAT., S/ FORNEC. E ASSENT. DE TAMPAO | C181: un | D181: 1 | E181: 3214 | F181: 3214
A182: 5.9.3 | B182: ASSENTAMENTO DE TAMPAO DE FERRO FUNDIDO 600 MM | C182: un | D182: 2 | E182: 80.33 | F182: 160.66
A183: 5.9.4 | B183: FORN. E ASSENT. DE TAMPA EM FERRO FUNDIDO P/ INSPEÇÃO CONFORME PROJETO, INCLUSIVE PINTURA ANTICORROSIVA A ÓLEO EM DUAS DEMÃOS E ACESSÓRIOS DE FIXAÇÃO | C183: m² | D183: 0.98 | E183: 396.95 | F183: 389.01
A184: 5.10 | B184: DRENAGEM, CONTENCOES E REFORCO DE SOLO
A185: 5.10.1 | B185: ENROCAMENTO C/ PEDRA DE MAO, C/ ARRUMACAO MANUAL, INCL. FORNEC. DO MATERIAL | C185: m³ | D185: 0.48 | E185: 392.52 | F185: 188.41
A186: 5.11 | B186: ASSENT. MONTAGEM E REMOÇAO DE TUBULACOES, PEÇAS, CONEXOES, VALVULAS E APARELHOS
A187: 5.11.1 | B187: MONT. DE PEÇAS, CONEXOES, VALVULAS, APARELHOS E ACESSORIOS DE FERRO FUNDIDO DUCTIL OU AÇO CARBONO, JUNTA FLANGEADA OU MECANICA C/ DIAMETROS DE 50 A 250 mm. | C187: kg | D187: 3196.73 | E187: 10.52 | F187: 33629.6
A188: 5.11.2 | B188: ASSENTAMENTO DE TUBO DE PVC PARA REDE COLETORA DE ESGOTO DE PAREDE MACIÇA, DN 150 MM, JUNTA ELÁSTICA, INSTALADO EM LOCAL COM NÍVEL BAIXO DE INTERFERÊNCIAS (NÃO INCLUI FORNECIMENTO). AF_06/2015 | C188: m | D188: 39 | E188: 3.66 | F188: 142.74
A189: 5.11.3 | B189: ASSENTAMENTO DE TUBO DE PVC PARA REDE COLETORA DE ESGOTO DE PAREDE MACIÇA, DN 200 MM, JUNTA ELÁSTICA, INSTALADO EM LOCAL COM NÍVEL BAIXO DE INTERFERÊNCIAS (NÃO INCLUI FORNECIMENTO). AF_06/2015 | C189: m | D189: 25 | E189: 4.33 | F189: 108.25
A190: 5.12 | B190: TRANSPORTE DE TUBOS, PEÇAS E CONEXOES
A191: 5.12.1 | B191: CARGA E DESCARGA DE TUBOS PVC RIG. / RPVC, DN ATE 350 mm | C191: m | D191: 64 | E191: 2.33 | F191: 149.12
A192: 5.12.2 | B192: CARGA E DESCARGA DE TUBO DE F-F- DUCTIL OU AÇO CARBONO, P/DN ATE 300mm. | C192: t | D192: 3.2 | E192: 93.09 | F192: 297.89
A193: 5.13 | B193: EDIFICAÇOES
A194: 5.13.1 | B194: ALVENARIA DE VEDAÇÃO DE BLOCOS CERÂMICOS FURADOS NA HORIZONTAL DE 9X14X19CM (ESPESSURA 9CM) DE PAREDES COM ÁREA LÍQUIDA MENOR QUE 6M² SEM VÃOS E ARGAMASSA DE ASSENTAMENTO COM PREPARO EM BETONEIRA. AF_06/2014 | C194: m² | D194: 234.38 | E194: 94.41 | F194: 22127.82
A195: 5.13.2 | B195: ALVENARIA EM TIJOLO CERAMICO MACICO 5X10X20CM 1/2 VEZ (ESPESSURA 10CM), ASSENTADO COM ARGAMASSA TRACO 1:2:8 (CIMENTO, CAL E AREIA) | C195: m² | D195: 4.36 | E195: 59.16 | F195: 257.94
A196: 5.13.3 | B196: ELEMENTOS VAZADOS DE CONCRETO PRE-MOLDADO (COBOGO) | C196: m² | D196: 13.15 | E196: 125.12 | F196: 1645.33
A197: 5.13.4 | B197: REVESTIMENTO C/ ARGAMASSA DE CIMENTO E AREIA GROSSA P/ REVESTIMENTO DE CAIXAS | C197: m² | D197: 8.72 | E197: 40.03 | F197: 349.06
A198: 5.13.5 | B198: EMBASAMENTO C/PEDRA ARGAMASSADA UTILIZANDO ARG.CIM/AREIA 1:4 | C198: m³ | D198: 20.77 | E198: 395.63 | F198: 8217.24
A199: 5.13.6 | B199: TELHAMENTO COM TELHA CERÂMICA CAPA-CANAL, TIPO COLONIAL, COM ATÉ 2 ÁGUAS, INCLUSO TRANSPORTE VERTICAL. AF_06/2016 | C199: m² | D199: 48.36 | E199: 25.14 | F199: 1215.77
A200: 5.13.7 | B200: TRAMA DE MADEIRA COMPOSTA POR RIPAS, CAIBROS E TERÇAS PARA TELHADOS DEATÉ 2 ÁGUAS PARA TELHA CERÂMICA CAPA-CANAL, INCLUSO TRANSPORTE VERTIC AL. AF_12/2015 | C200: m² | D200: 48.36 | E200: 60.28 | F200: 2915.14
... 175 more rows

Sheet Plan. Detalhada Materiais
A1: Ministério da Integração Nacional | E1: ='Plan. Detalhada Serviços'!E1 -> EDITAL Nº | F1: ='Plan. Detalhada Serviços'!F1 -> 22/2017
A2: Companhia de Desenvolvimento dos Vales do São Francisco e do Parnaíba | E2: ='Plan. Detalhada Serviços'!E2 -> DATA | F2: ='Plan. Detalhada Serviços'!F2 -> 2017-10-08
A3: Área de Revitalização das Bacias Hidrográficas
A4: SISTEMA DE ESGOTAMENTO SANITÁRIO DO MUNICÍPIO DE CANAPI / AL | E4: BDI (Serv.): | F4: 0.259
A5: PLANILHA QUANTITATIVO E ORÇAMENTO DE PROJETO (Data Base: MAR/2017) | E5: BDI (Mat.): | F5: 0.1535
A6: ITEM | B6: DESCRIÇÃO | C6: UNID. | D6: QUANT. | E6: P. UNITÁRIO | F6: P. TOTAL
A7: II | B7: MATERIAIS
A8: 1.0 | B8: REDE COLETORA CONVENCIONAL / LINHA DE RECALQUE / EMISSÁRIO FINAL | E8: Subtotal | F8: =SUM(F10:F23) -> 230712.56
A9: 1.1 | B9: TUBOS PECAS E CONEXÕES DE FERRO FUNDIDO DUCTIL
A10: 1.1.1 | B10: Tubo de FoFo Ductil K7, Ponta e Bolsa c/ Junta Elástica (JGS), incluindo anéis de borracha (TK7 JGS PB FoFo) - DN 100 (15,200 Kg) | C10: m | D10: 470.44 | E10: 176.69 | F10: =ROUND(D10*E10,2) -> 83122.04
A11: 1.1.2 | B11: Tubo de FoFo Ductil K7, Ponta e Bolsa c/ Junta Elástica (JGS), incluindo anéis de borracha (TK7 JGS PB FoFo) - DN 150 (23,200 Kg) | C11: m | D11: 68.6 | E11: 225.84 | F11: =ROUND(D11*E11,2) -> 15492.62
A12: 1.1.3 | B12: TAMPAO FOFO ARTICULADO, CLASSE D400 CARGA MAX 40 T, REDONDO TAMPA *600 MM, REDE PLUVIAL/ESGOTO | C12: m | D12: 71 | E12: 446.07 | F12: 31670.97
A13: 1.2 | B13: CONEXÕES DE FoFo DUCTIL C/ PONTA E BOLSA C/ JUNTA ELASTICA (JGS), INCLUINDO ANEIS DE BORRACHA
A14: 1.2.1 | B14: CURVA 90o C/ BOLSAS JGS FoFo (C90 JGS FoFo) - DN 100 (14,00 Kg) | C14: un | D14: 2 | E14: 141.13 | F14: 282.26
A15: 1.2.2 | B15: CURVA 45o C/ BOLSAS JGS FoFo (C45 JGS FoFo) - DN 200 27,300 kg | C15: un | D15: 2 | E15: 291.17 | F15: 582.34
A16: 1.2.3 | B16: CURVA 22o30' C/ BOLSAS JGS FoFo (C22 JGS FoFo) - DN 200 (29,200 kg) | C16: un | D16: 1 | E16: 277.28 | F16: 277.28
A17: 1.2.4 | B17: CURVA 11o15' C/ BOLSAS JGS FoFo (C11 JGS FoFo) - DN 200 (27,600 kg) | C17: un | D17: 7 | E17: 279.57 | F17: 1956.99
A18: 1.3 | B18: TUBOS, PECAS E CONEXOES DE PVC
A19: 1.3.1 | B19: TUBOS DE PVC RIGIDO P/ ESGOTO (NBR 7362) PONTA E BOLSA C/ JUNTA ELASTICA (JE) (T ES PVC PB JE P/ ESG.) - DN 150 | C19: m | D19: 2331.77 | E19: 35.32 | F19: 82358.12
A20: 1.3.2 | B20: TUBOS DE PVC RIGIDO P/ ESGOTO (NBR 7362) PONTA E BOLSA C/ JUNTA ELASTICA (JE) (T ES PVC PB JE P/ ESG.) - DN 200 | C20: m | D20: 220 | E20: 55.14 | F20: 12130.8
A21: 1.4 | B21: CONEXOES DE PVC P/ ESGOTO C/ JUNTA ELASTICA (JE) E ACESSORIOS
A22: 1.4.1 | B22: ANEL DE BORRACHA P/ ESGOTO PVC JE (ANB P/ ES PVC JE) - DN 150 | C22: un | D22: 389 | E22: 6.55 | F22: 2547.95
A23: 1.4.2 | B23: ANEL DE BORRACHA P/ ESGOTO PVC JE (ANB P/ ES PVC JE) - DN 200 | C23: un | D23: 37 | E23: 7.87 | F23: 291.19
A24: 2.0 | B24: REDE COLETORA CONDOMINIAL | E24: Subtotal | F24: =SUM(F25:F26) -> 27183.36
A25: 2.1 | B25: TUBOS DE PVC RIGIDO P/ ESGOTO (NBR 7362) PONTA E BOLSA C/ JUNTA ELASTICA (JE) (T ES PVC PB JE P/ ESG.) - DN 150 | C25: m | D25: 746.45 | E25: 35.32 | F25: 26364.61
A26: 2.2 | B26: ANEL DE BORRACHA P/ ESGOTO PVC JE (ANB P/ ES PVC JE) - DN 150 | C26: un | D26: 125 | E26: 6.55 | F26: 818.75
A27: 3.0 | B27: RAMAIS PREDIAIS | E27: Subtotal | F27: =SUM(F28:F32) -> 35054.82
A28: 3.1 | B28: TUBOS DE PVC RIGIDO P/ ESGOTO (NBR 7362) PONTA E BOLSA C/ JUNTA ELASTICA (JE) (T ES PVC PB JE P/ ESG.) - DN 100 | C28: m | D28: 1133.75 | E28: 16.41 | F28: 18604.84
A29: 3.2 | B29: CURVA PVC, PB, JE, 45 GRAUS, DN 100 MM, PARA REDE COLETORA ESGOTO (NBR 10569) | C29: un | D29: 664 | E29: 17.51 | F29: 11626.64
A30: 3.3 | B30: SELIM 90o ELASTICO ES PVC JE (S90o ELASTICO ES PVC JE) - DN 200 X 100 (NBR 10569) | C30: un | D30: 28 | E30: 7.53 | F30: 210.84
A31: 3.4 | B31: SELIM 90o ELASTICO ES PVC JE (S90o ELASTICO ES PVC JE) - DN 150 X 100 | C31: un | D31: 775 | E31: 3.2 | F31: 2480
A32: 3.5 | B32: ANEL DE BORRACHA P/ ESGOTO PVC JE (ANB P/ ES PVC JE) - DN 100 | C32: un | D32: 853 | E32: 2.5 | F32: 2132.5
A33: 4.0 | B33: ESTAÇÕES ELEVATÓRIAS (EEE-1/EEE-2) | E33: Subtotal | F33: =SUM(F35:F115) -> 179721.56
A34: 4.1 | B34: TUBOS, PECAS E CONEXOES DE FERRO FUNDIDO DUCTIL
A35: 4.1.1 | B35: TUBOS DE FoFo DUCTIL C/ 02 FLANGES (TFL 10 FoFo) - DN 80 X 0,60 (21,900 kg) | C35: un | D35: 2 | E35: 554.27 | F35: =ROUND(D35*E35,2) -> 1108.54
A36: 4.1.2 | B36: TUBOS DE FoFo DUCTIL C/ 02 FLANGES (TFL 10 FoFo) - DN 80 X 1,00 (21,900 kg) | C36: un | D36: 1 | E36: 554.27 | F36: 554.27
A37: 4.1.3 | B37: TUBOS DE FoFo DUCTIL C/ 02 FLANGES (TFL 10 FoFo) - DN 80 X 1,70 (35,800 kg) | C37: un | D37: 2 | E37: 737.43 | F37: 1474.86
A38: 4.1.4 | B38: TUBOS DE FoFo DUCTIL C/ 02 FLANGES (TFL 10 FoFo) - DN 80 X 3,50 (56,650 kg) | C38: un | D38: 1 | E38: 998.32 | F38: 998.32
A39: 4.1.5 | B39: TUBOS DE FoFo DUCTIL C/ 02 FLANGES (TFL 10 FoFo) - DN 80 X 4,30 (70,550 kg) | C39: un | D39: 2 | E39: 1137.46 | F39: 2274.92
A40: 4.1.6 | B40: TUBOS DE FoFo DUCTIL C/ 02 FLANGES (TFL 10 FoFo) - DN 100 X 4,30 (86,400 kg) | C40: un | D40: 2 | E40: 1263.97 | F40: 2527.94
A41: 4.1.7 | B41: TUBOS DE FoFo DUCTIL C/ 02 FLANGES (TFL 10 FoFo) - DN 150 X 0,80 (42,000 kg) | C41: un | D41: 2 | E41: 784.44 | F41: 1568.88
A42: 4.1.8 | B42: TUBOS DE FoFo DUCTIL C/ 02 FLANGES (TFL 10 FoFo) - DN 150 X 1,10 (55,000 kg) | C42: un | D42: 1 | E42: 784.44 | F42: 784.44
A43: 4.1.9 | B43: TUBOS DE FoFo DUCTIL C/ 02 FLANGES (TFL 10 FoFo) - DN 150 X 2,00 (68,000 kg) | C43: un | D43: 2 | E43: 1044.65 | F43: 2089.3
A44: 4.1.10 | B44: TUBOS DE FoFo DUCTIL C/ 02 FLANGES (TFL 10 FoFo) - DN 150 X 4,00 (120,000 kg) | C44: un | D44: 2 | E44: 1538.29 | F44: 3076.58
A45: 4.1.11 | B45: TUBOS DE FoFo DUCTIL C/ 02 FLANGES (TFL 10 FoFo) - DN 150 X 4,30 (133,000 kg) | C45: un | D45: 2 | E45: 1612.34 | F45: 3224.68
A46: 4.2 | B46: TUBOS DE FoFo DUCTIL C/ 01 FLANGE E 01 PONTA LISA (TFP PN10 FoFo )
A47: 4.2.1 | B47: TUBOS DE FoFo DUCTIL C/ 01 FLANGE E 01 PONTA LISA PN10 (TFP10 FoFo) - DN 80 X 0,25 (10,950 kg) | C47: un | D47: 4 | E47: 413.44 | F47: 1653.76
A48: 4.2.2 | B48: TUBOS DE FoFo DUCTIL C/ 01 FLANGE E 01 PONTA LISA PN10 (TFP10 FoFo) - DN 80 X 3,00 (45,700 kg) | C48: un | D48: 1 | E48: 998.86 | F48: 998.86
A49: 4.2.3 | B49: TUBOS DE FoFo DUCTIL C/ 01 FLANGE E 01 PONTA LISA PN10 (TFP10 FoFo) - DN 80 X 2,00 (31,800 kg) | C49: un | D49: 1 | E49: 706.86 | F49: 706.86
A50: 4.2.4 | B50: TUBOS DE FoFo DUCTIL C/ 01 FLANGE E 01 PONTA LISA PN10 (TFP10 FoFo) - DN 150 X 0,50 (21,000 kg) | C50: un | D50: 1 | E50: 341.86 | F50: 341.86
A51: 4.2.5 | B51: TUBOS DE FoFo DUCTIL C/ 01 FLANGE E 01 PONTA LISA PN10 (TFP10 FoFo) - DN 150 X 3,00 (86,000 kg) | C51: un | D51: 1 | E51: 1169.79 | F51: 1169.79
A52: 4.2.6 | B52: TUBOS DE FoFo DUCTIL C/ 01 FLANGE E 01 PONTA LISA PN10 (TFP10 FoFo) - DN 100 X 2,30 (47,500 kg) | C52: un | D52: 1 | E52: 863.55 | F52: 863.55
A53: 4.2.7 | B53: TUBOS DE FoFo DUCTIL C/ 01 FLANGE E 01 PONTA LISA PN10 (TFP10 FoFo) - DN 150 X 0,25 (21,000 kg) | C53: un | D53: 4 | E53: 259.96 | F53: 1039.84
A54: 4.2.8 | B54: TUBOS DE FoFo DUCTIL C/ 01 FLANGE E 01 PONTA LISA PN10 (TFP10 FoFo) - DN 150 X 2,50 (73,000 kg) | C54: un | D54: 1 | E54: 1004.21 | F54: 1004.21
A55: 4.2.9 | B55: TUBOS DE FoFo DUCTIL C/ 01 FLANGE E 01 PONTA LISA PN10 (TFP10 FoFo) - DN 200 X 0.50 (27,400 kg) | C55: un | D55: 1 | E55: 432.67 | F55: 432.67
A56: 4.2.10 | B56: TUBOS DE FoFo DUCTIL C/ 01 FLANGE E 01 PONTA LISA PN10 (TFP10 FoFo) - DN 200 X 3,00 (114,400 kg) | C56: un | D56: 2 | E56: 1394.14 | F56: 2788.28
A57: 4.3 | B57: CONEXÕES DE FoFo DUCTIL C/ PONTA E BOLSA C/ JUNTA ELASTICA (JGS), INCLUINDO ANEIS DE BORRACHA
A58: 4.3.1 | B58: CURVA 90o C/ BOLSAS JGS FoFo (C90 JGS FoFo) - DN 100 (14,00 Kg) | C58: un | D58: 1 | E58: 141.13 | F58: 141.13
A59: 4.3.2 | B59: CURVA 45o C/ BOLSAS JGS FoFo (C45 JGS FoFo) - DN 150 20,700 kg | C59: un | D59: 1 | E59: 291.17 | F59: 291.17
A60: 4.3.3 | B60: REDUCAO PONTA E BOLSA JGS (R PB JGS FoFo) - DN 100 X 80 (8,100 kg) | C60: un | D60: 1 | E60: 117.15 | F60: 117.15
A61: 4.3.4 | B61: REDUCAO PONTA E BOLSA JGS (R PB JGS FoFo) - DN 200 X 150 (20,000 kg) | C61: un | D61: 1 | E61: 248.55 | F61: 248.55
A62: 4.4 | B62: CONEXÕES DE FoFo DUCTIL C/ FLANGES PN10 E ACESSORIOS
A63: 4.4.1 | B63: CURVA 90o FoFo C/ FLANGES PN 10 (C90FF10 FoFo) - DN 80 (9,500 kg) | C63: un | D63: 8 | E63: 130.07 | F63: 1040.56
A64: 4.4.2 | B64: CURVA 90o FoFo C/ FLANGES PN 10 (C90FF10 FoFo) - DN 100 (11,000 kg) | C64: un | D64: 1 | E64: 169.71 | F64: 169.71
A65: 4.4.3 | B65: CURVA 90o FoFo C/ FLANGES PN 10 (C90FF10 FoFo) - DN 150 (18,000 kg) | C65: un | D65: 8 | E65: 276.33 | F65: 2210.64
A66: 4.4.4 | B66: CURVA 90o FoFo C/ FLANGES PN 10 (C90FF10 FoFo) - DN 200 (28,000 kg) | C66: un | D66: 1 | E66: 395.46 | F66: 395.46
A67: 4.4.5 | B67: CURVA 45o FoFo C/ FLANGES PN 10 (C45FF10 FoFo) - DN 80 (9,500 kg) | C67: un | D67: 2 | E67: 131.98 | F67: 263.96
A68: 4.4.6 | B68: CURVA 45o FoFo C/ FLANGES PN 10 (C45FF10 FoFo) - DN 100 (10,500 kg) | C68: un | D68: 1 | E68: 190 | F68: 190
A69: 4.4.7 | B69: CURVA 45o FoFo C/ FLANGES PN 10 (C45FF10 FoFo) - DN 150 (17,000 kg) | C69: un | D69: 1 | E69: 267.88 | F69: 267.88
A70: 4.4.8 | B70: TE FoFo C/ FLANGES PN 10 (TFF10 FoFo) - DN 80 X 80 (15,300 kg) | C70: un | D70: 2 | E70: 210.06 | F70: 420.12
A71: 4.4.9 | B71: TE FoFo C/ FLANGES PN 10 (TFF10 FoFo) - DN 150 X 100 (28,500 kg) | C71: un | D71: 1 | E71: 340.15 | F71: 340.15
A72: 4.4.10 | B72: TE FoFo C/ FLANGES PN 10 (TFF10 FoFo) - DN 150 X 150 (32,000 kg) | C72: un | D72: 1 | E72: 372.43 | F72: 372.43
A73: 4.4.11 | B73: PARAFUSOS P/ JUNTAS C/ FLANGES FoFo PN 10 (PPF10) - DN 80 (16 X 80 mm) 0,175 kg | C73: un | D73: 272 | E73: 8 | F73: 2176
A74: 4.4.12 | B74: PARAFUSOS P/ JUNTAS C/ FLANGES FoFo PN 10 (PPF10) - DN 100 (16 X 80 mm) 0,175 kg | C74: un | D74: 56 | E74: 8 | F74: 448
A75: 4.4.13 | B75: PARAFUSOS P/ JUNTAS C/ FLANGES FoFo PN 10 (PPF10) - DN 150 (20 X 90 mm) 0,338 kg | C75: un | D75: 184 | E75: 12.61 | F75: 2320.24
A76: 4.4.14 | B76: PARAFUSOS P/ JUNTAS C/ FLANGES FoFo PN 10 (PPF10) - DN 200 (20 X 90 mm) 0,338 kg | C76: un | D76: 16 | E76: 12.61 | F76: 201.76
A77: 4.4.15 | B77: ARRUELAS P/ JUNTAS C/ FLANGES FoFo PN 10 (ABF10) - DN 80 0,030 kg | C77: un | D77: 34 | E77: 9.72 | F77: 330.48
A78: 4.4.16 | B78: ARRUELAS P/ JUNTAS C/ FLANGES FoFo PN 10 (ABF10) - DN 100 0,040 kg | C78: un | D78: 7 | E78: 15.84 | F78: 110.88
A79: 4.4.17 | B79: ARRUELAS P/ JUNTAS C/ FLANGES FoFo PN 10 (ABF10) - DN 150 0,060 kg | C79: un | D79: 23 | E79: 23.21 | F79: 533.83
A80: 4.4.18 | B80: ARRUELAS P/ JUNTAS C/ FLANGES FoFo PN 10 (ABF10) - DN 200 0,090 kg | C80: un | D80: 2 | E80: 28.81 | F80: 57.62
A81: 4.4.19 | B81: REDUCAO CONCENTRICA FoFo C/ FLANGES PN 10 (RFF10 FoFo) - DN 150 X 80 (18,850 kg) | C81: un | D81: 2 | E81: 259.63 | F81: 519.26
A82: 4.4.20 | B82: REDUCAO CONCENTRICA FoFo C/ FLANGES PN 10 (RFF10 FoFo) - DN 200 X 150 (22,000 kg) | C82: un | D82: 2 | E82: 268.78 | F82: 537.56
A83: 4.4.21 | B83: REDUCAO CONCENTRICA FoFo C/ FLANGES PN 10 (RFF10 FoFo) - DN 150 X 100 (15,500 kg) | C83: un | D83: 2 | E83: 219.98 | F83: 439.96
A84: 4.5 | B84: JUNTAS P/ MONTAGEM E MANUTENCAO EM FoFo DUCTIL E ACESSORIOS
A85: 4.5.1 | B85: JUNTA GIBAULT E TIRANTES (JGI) - DN 80 (7,000 kg) | C85: un | D85: 2 | E85: 157.23 | F85: 314.46
A86: 4.5.2 | B86: JUNTA GIBAULT E TIRANTES (JGI) - DN 150 (14,200 kg) | C86: un | D86: 2 | E86: 272.33 | F86: 544.66
A87: 4.6 | B87: REGISTROS DE GAVETA EM FoFo DUCTIL
A88: 4.6.1 | B88: REGISTRO DE GAVETA CHATO FoFo C/ FLANGES PN 10 (RCFC10 FoFo) - DN 75 (26,000 kg) | C88: un | D88: 3 | E88: 374.53 | F88: 1123.59
A89: 4.6.2 | B89: REGISTRO DE GAVETA CHATO FoFo C/ FLANGES PN 10 (RCFC10 FoFo) - DN 100 (37,000 kg) | C89: un | D89: 1 | E89: 460.63 | F89: 460.63
A90: 4.6.3 | B90: REGISTRO DE GAVETA CHATO FoFo C/ FLANGES PN 10 (RCFC10 FoFo) - DN 150 (60,000 kg) | C90: un | D90: 3 | E90: 1008.864 | F90: 3026.59
A91: 4.6.4 | B91: REGISTRO DE GAVETA CHATO FoFo C/ FLANGES PN 10 (RCFC10 FoFo) - DN 200 (104,000 kg) | C91: un | D91: 1 | E91: 1338.21 | F91: 1338.21
A92: 4.7 | B92: VALVULAS DE RETENCAO DE FoFo DUCTIL
A93: 4.7.1 | B93: VALVULA DE RETENÇÃO TIPO PORT. ÚNICA C/ FLANGES PN10 (VRPU10 FoFo PN 10) - DN 85 | C93: un | D93: 2 | E93: 679.99 | F93: 1359.98
A94: 4.7.2 | B94: VALVULA DE RETENÇÃO TIPO PORT. ÚNICA C/ FLANGES PN10 (VRPU10 FoFo PN 10) - DN 150 | C94: un | D94: 2 | E94: 1500.72 | F94: 3001.44
A95: 4.8 | B95: VALVULAS DE COMANDO HIDRAULICO OU ELETRICO EM FoFo DUCTIL E DEMAIS MATERIAIS STANDART, EXCLUSIVE SERV. E MAT. P/ INSTAL. ELET.
A96: 4.8.1 | B96: HASTE DE PROLONGAMENTO C/ QUADRADO E BOCA DE CHAVE (HQC) - d= 1 1/8' 5 kg/m | C96: m | D96: 7.7 | E96: 649.09 | F96: 4997.99
A97: 4.8.2 | B97: MANCAL INTERMEDIARIO EM FoFo DUCTIL P/ HASTE (MIH FoFo) d = 1 1/8' 8,500 kg | C97: un | D97: 3 | E97: 296.8 | F97: 890.4
A98: 4.8.3 | B98: CONJUNTO MOTO BOMBA RE-AUTOESCORVANTE, DADOS: Q = 5,00 l/s; AMT = 16,78 m.c.a; P = 5,00 CV | C98: cj | D98: 2 | E98: 25182.83 | F98: 50365.66
A99: 4.8.4 | B99: CONJUNTO MOTO BOMBA SUBMERSÍVEL, DADOS: Q = 21,07 l/s; AMT = 39,88 m.c.a; P = 15 CV | C99: cj | D99: 2 | E99: 31583.57 | F99: =ROUND(D99*E99,2) -> 63167.14
A100: 4.9 | B100: TUBOS, PECAS E CONEXOES DE PVC
A101: 4.9.1 | B101: TUBOS DE PVC RIGIDO P/ ESGOTO (NBR 7362) PONTA E BOLSA C/ JUNTA ELASTICA (JE) (T ES PVC PB JE P/ ESG.) - DN 150 | C101: m | D101: 42 | E101: 35.32 | F101: 1483.44
A102: 4.9.2 | B102: TUBOS DE PVC RIGIDO P/ ESGOTO (NBR 7362) PONTA E BOLSA C/ JUNTA ELASTICA (JE) (T ES PVC PB JE P/ ESG.) - DN 200 | C102: m | D102: 25 | E102: 55.14 | F102: 1378.5
A103: 4.9.3 | B103: TUBOS DE PVC C/ JUNTA ROSCAVEL (JR) (T PVC JR) - DN 1' | C103: m | D103: 3.6 | E103: 12.69 | F103: 45.68
A104: 4.9.4 | B104: TUBOS DE PVC C/ JUNTA ROSCAVEL (JR) (T PVC JR) - DN 1' | C104: m | D104: 4.9 | E104: 12.69 | F104: 62.18
A105: 4.9.5 | B105: JOELHO 90º PVC, COM JUNTA ROSCÁVEL DN 1" | C105: un | D105: 2 | E105: 3.62 | F105: 7.24
A106: 4.10 | B106: CONEXOES DE PVC P/ ESGOTO C/ JUNTA ELASTICA (JE) E ACESSORIOS
A107: 4.10.1 | B107: ANEL DE BORRACHA P/ ESGOTO PVC JE (ANB P/ ES PVC JE) - DN 150 | C107: un | D107: 7 | E107: 6.55 | F107: 45.85
A108: 4.10.2 | B108: ANEL DE BORRACHA P/ ESGOTO PVC JE (ANB P/ ES PVC JE) - DN 200 | C108: un | D108: 5 | E108: 7.87 | F108: 39.35
A109: 4.11 | B109: REDUCAO CONCENTRICA FoFo C/ FLANGES PN 10
A110: 4.11.1 | B110: REDUCAO CONCENTRICA FoFo C/ FLANGES PN 10 (RFF10 FoFo) - DN 100 X 80 (9,500 kg) | C110: un | D110: 2 | E110: 259.62 | F110: 519.24
A111: 4.12 | B111: MATERIAIS DE AÇO GALVANIZADO
A112: 4.12.1 | B112: TUBO COM JUNTA ROSCÁVEL DE AÇO GALVANIZADO 1" | C112: m | D112: 13.2 | E112: 16.74 | F112: 220.97
A113: 4.12.2 | B113: TUBO COM JUNTA ROSCÁVEL DE AÇO GALVANIZADO 1" | C113: m | D113: 4.9 | E113: 16.74 | F113: 82.03
A114: 4.12.3 | B114: REGISTRO DE ESFERA AÇO GALVANIZADO 1" | C114: un | D114: 2 | E114: 202.47 | F114: 404.94
A115: 4.12.4 | B115: JOELHO 90º PVC, COM JUNTA ROSCÁVEL DN 1" | C115: un | D115: 4 | E115: 3.62 | F115: 14.48
A116: 5.0 | B116: ESTRUTURA DE ENTRADA E DAFA'S | E116: Subtotal | F116: =SUM(F118:F149) -> 63931.59
A117: 5.1 | B117: TUBOS PECAS E CONEXÕES DE FERRO FUNDIDO DUCTIL
A118: 5.1.1 | B118: TUBOS DE FoFo DUCTIL C/ 02 FLANGES PN10 (TFL10 FoFo) - DN 100 X 4,00 (77,800 kg) | C118: un | D118: 2 | E118: 1207.62 | F118: =ROUND(D118*E118,2) -> 2415.24
A119: 5.1.2 | B119: TUBOS DE FoFo DUCTIL C/ 02 FLANGES PN10 (TFL10 FoFo) - DN 200 X 5,00 (194,000 kg) | C119: un | D119: 3 | E119: 2226.25 | F119: 6678.75
A120: 5.1.3 | B120: TUBOS DE FoFo DUCTIL C/ 01 FLANGE E 01 PONTA LISA PN10 (TFP10 FoFo) - DN 100 X 2,50 (47,500 kg) | C120: un | D120: 2 | E120: 863.55 | F120: 1727.1
A121: 5.1.4 | B121: TUBOS DE FoFo DUCTIL C/ 01 FLANGE E 01 PONTA LISA PN10 (TFP10 FoFo) - DN 100 X 3,00 (56,100 kg) | C121: un | D121: 2 | E121: 1009.56 | F121: 2019.12
A122: 5.1.5 | B122: TUBOS DE FoFo DUCTIL C/ 01 FLANGE E 01 PONTA LISA PN10 (TFP10 FoFo) - DN 150 X 0,50 (21,000 kg) | C122: un | D122: 4 | E122: 341.86 | F122: 1367.44
A123: 5.1.6 | B123: TUBOS DE FoFo DUCTIL C/ 01 FLANGE E 01 PONTA LISA PN10 (TFP10 FoFo) - DN 150 X 4,50 (125,000 kg) | C123: un | D123: 4 | E123: 1666.56 | F123: 6666.24
A124: 5.1.7 | B124: TUBOS DE FoFo DUCTIL C/ 01 FLANGE E 01 PONTA LISA PN10 (TFP10 FoFo) - DN 200 X 0.50 (27,400 kg) | C124: un | D124: 8 | E124: 432.67 | F124: 3461.36
A125: 5.1.8 | B125: TUBOS DE FoFo DUCTIL C/ 01 FLANGE E 01 PONTA LISA PN10 (TFP10 FoFo) - DN 200 X 2,50 (97,000 kg) | C125: un | D125: 8 | E125: 1201.85 | F125: 9614.8
A126: 5.1.9 | B126: TUBOS DE FoFo DUCTIL C/ 01 FLANGE E 01 PONTA LISA PN10 (TFP10 FoFo) - DN 200 X 5,50 (201,400 kg) | C126: un | D126: 1 | E126: 2355.62 | F126: 2355.62
A127: 5.1.10 | B127: TUBOS DE FoFo DUCTIL CILINDRICOS (TCL FoFo) - DN 100 (17,200 kg) | C127: m | D127: 22 | E127: 216.11 | F127: 4754.42
A128: 5.1.11 | B128: TUBOS DE FoFo DUCTIL CILINDRICOS (TCL FoFo) - DN 200 (34,800 kg) | C128: m | D128: 18 | E128: 325.32 | F128: 5855.76
A129: 5.1.12 | B129: CURVA 90o C/ BOLSAS JGS FoFo (C90 JGS FoFo) - DN 200 (35,200 kg) | C129: un | D129: 1 | E129: 502.53 | F129: 502.53
A130: 5.1.13 | B130: CURVA 90o FoFo C/ FLANGES PN 10 (C90FF10 FoFo) - DN 80 (9,500 kg) | C130: un | D130: 8 | E130: 130.07 | F130: 1040.56
A131: 5.1.14 | B131: CURVA 90o FoFo C/ FLANGES PN 10 (C90FF10 FoFo) - DN 100 (11,000 kg) | C131: un | D131: 2 | E131: 169.71 | F131: 339.42
A132: 5.1.15 | B132: CURVA 90o FoFo C/ FLANGES PN 10 (C90FF10 FoFo) - DN 150 (18,000 kg) | C132: un | D132: 4 | E132: 276.33 | F132: 1105.32
A133: 5.1.16 | B133: CURVA 90o FoFo C/ FLANGES PN 10 (C90FF10 FoFo) - DN 200 (28,000 kg) | C133: un | D133: 1 | E133: 395.46 | F133: 395.46
A134: 5.1.17 | B134: TE FoFo C/ FLANGES PN 10 (TFF10 FoFo) - DN 200 X 200 (47,000 kg) | C134: un | D134: 4 | E134: 508.26 | F134: 2033.04
A135: 5.1.18 | B135: FLANGE CEGO FoFo PN 10 (FC10 FoFo) - DN 200 (11,000 kg) | C135: un | D135: 1 | E135: 143.79 | F135: 143.79
A136: 5.1.19 | B136: EXTREMIDADE PONTA E FLANGE C/ ABA DE VEDACAO FoFo PN 10 (EPFAV10 FoFo) - DN 200 46,000 kg | C136: un | D136: 1 | E136: 582.17 | F136: 582.17
A137: 5.1.20 | B137: PARAFUSOS P/ JUNTAS C/ FLANGES FoFo PN 10 (PPF10) - DN 80 (16 X 80 mm) 0,175 kg | C137: un | D137: 64 | E137: 8 | F137: 512
A138: 5.1.21 | B138: PARAFUSOS P/ JUNTAS C/ FLANGES FoFo PN 10 (PPF10) - DN 100 (16 X 80 mm) 0,175 kg | C138: un | D138: 64 | E138: 8 | F138: 512
A139: 5.1.22 | B139: PARAFUSOS P/ JUNTAS C/ FLANGES FoFo PN 10 (PPF10) - DN 150 (20 X 90 mm) 0,338 kg | C139: un | D139: 64 | E139: 12.61 | F139: 807.04
A140: 5.1.23 | B140: PARAFUSOS P/ JUNTAS C/ FLANGES FoFo PN 10 (PPF10) - DN 200 (20 X 90 mm) 0,338 kg | C140: un | D140: 228 | E140: 12.61 | F140: 2875.08
A141: 5.1.24 | B141: ARRUELAS P/ JUNTAS C/ FLANGES FoFo PN 10 (ABF10) - DN 80 0,030 kg | C141: un | D141: 8 | E141: 9.72 | F141: 77.76
A142: 5.1.25 | B142: ARRUELAS P/ JUNTAS C/ FLANGES FoFo PN 10 (ABF10) - DN 100 0,040 kg | C142: un | D142: 8 | E142: 15.84 | F142: 126.72
A143: 5.1.26 | B143: ARRUELAS P/ JUNTAS C/ FLANGES FoFo PN 10 (ABF10) - DN 150 0,060 kg | C143: un | D143: 8 | E143: 23.21 | F143: 185.68
A144: 5.1.27 | B144: ARRUELAS P/ JUNTAS C/ FLANGES FoFo PN 10 (ABF10) - DN 200 0,090 kg | C144: un | D144: 19 | E144: 28.81 | F144: 547.39
A145: 5.1.28 | B145: JUNTA GIBAULT E TIRANTES (JGI) - DN 200 (17,500 kg) | C145: un | D145: 4 | E145: 380.15 | F145: 1520.6
A146: 5.1.29 | B146: TAMPAO FOFO ARTICULADO, CLASSE D400 CARGA MAX 40 T, REDONDO TAMPA *600 MM, REDE PLUVIAL/ESGOTO | C146: un | D146: 3 | E146: 446.07 | F146: 1338.21
A147: 5.2 | B147: TUBOS, PECAS E CONEXOES DE PVC
A148: 5.2.1 | B148: TUBOS DE PVC RIGIDO P/ ESGOTO (NBR 7362) PONTA E BOLSA C/ JUNTA ELASTICA (JE) (T ES PVC PB JE P/ ESG.) - DN 200 | C148: m | D148: 42 | E148: 55.14 | F148: 2315.88
A149: 5.2.2 | B149: ANEL DE BORRACHA P/ ESGOTO PVC JE (ANB P/ ES PVC JE) - DN 200 | C149: un | D149: 7 | E149: 7.87 | F149: 55.09
A150: 6.0 | B150: LEITOS DE SECAGEM | E150: Subtotal | F150: =SUM(F151:F154) -> 1161.63
A151: 6.1 | B151: TUBOS DE PVC RIGIDO P/ ESGOTO (NBR 7362) PONTA E BOLSA C/ JUNTA ELASTICA (JE) (T ES PVC PB JE P/ ESG.) - DN 150 | C151: m | D151: 12 | E151: 35.32 | F151: =ROUND(D151*E151,2) -> 423.84
A152: 6.2 | B152: TUBOS DE PVC RIGIDO P/ ESGOTO (NBR 7362) PONTA E BOLSA C/ JUNTA ELASTICA (JE) (T ES PVC PB JE P/ ESG.) - DN 200 | C152: m | D152: 13 | E152: 55.14 | F152: 716.82
A153: 6.3 | B153: ANEL DE BORRACHA P/ ESGOTO PVC JE (ANB P/ ES PVC JE) - DN 150 | C153: un | D153: 2 | E153: 6.55 | F153: 13.1
A154: 6.4 | B154: ANEL DE BORRACHA P/ ESGOTO PVC JE (ANB P/ ES PVC JE) - DN 200 | C154: un | D154: 1 | E154: 7.87 | F154: 7.87
A155: 7.0 | B155: LAGOAS FACULTATIVAS | E155: Subtotal | F155: =SUM(F156:F159) -> 12500.16
A156: 7.1 | B156: TUBOS DE PVC RIGIDO P/ ESGOTO (NBR 7362) PONTA E BOLSA C/ JUNTA ELASTICA (JE) (T ES PVC PB JE P/ ESG.) - DN 200 | C156: m | D156: 132 | E156: 55.14 | F156: =ROUND(D156*E156,2) -> 7278.48
A157: 7.2 | B157: ANEL DE BORRACHA P/ ESGOTO PVC JE (ANB P/ ES PVC JE) - DN 200 | C157: un | D157: 22 | E157: 7.87 | F157: 173.14
A158: 7.3 | B158: TUBOS, PECAS E CONEXOES DE POLIETILENO DE ALTA DENSIDADE (PEAD) PE80 / POLIPROPILENO (T PEAD CL. 4,0 kgf/cm2) - DN 200 | C158: m | D158: 20 | E158: 196.6 | F158: 3932
A159: 7.4 | B159: MEDIDOR PARSHALL DE FIBRA DE VIDRO C/ W = 3" | C159: un | D159: 1 | E159: 1116.54 | F159: 1116.54
A160: 8.0 | B160: Fornecimentos e Instalações Elétricas - EEE - 1 | E160: Subtotal | F160: =SUM(F161:F181) -> 69323.62
A161: 8.1 | B161: Cruzeta de Concreto Tipo "T" de 1,90 m | C161: un | D161: 9 | E161: 162.7 | F161: =ROUND(D161*E161,2) -> 1464.3
A162: 8.2 | B162: Cruzeta de Concreto Tipo "L" de 1,70 m | C162: un | D162: 9 | E162: 162.7 | F162: 1464.3
A163: 8.3 | B163: Cabo de Alumínio sem alma de aço - CA 4 AWG | C163: kg | D163: 40 | E163: 38.15 | F163: 1526
A164: 8.4 | B164: Chave Fusível de Distribuição 15kV, 100A, 10kA, Base "C" | C164: Cj. | D164: 3 | E164: 274.72 | F164: 824.16
A165: 8.5 | B165: Isolador de Disco, 15kV, 140x165mm | C165: un | D165: 30 | E165: 42.39 | F165: 1271.7
A166: 8.6 | B166: Poste de Concreto tipo Duplo 'T' - 11 m / 200daN | C166: un | D166: 1 | E166: 708.26 | F166: 708.26
A167: 8.7 | B167: Poste de Concreto tipo Duplo 'T' - 11 m / 400daN | C167: un | D167: 4 | E167: 1181.19 | F167: 4724.76
A168: 8.8 | B168: Pino de Isolador | C168: un | D168: 25 | E168: 27.49 | F168: 687.25
A169: 8.9 | B169: Pára-raio de Distribuição 12 kV - 5kA | C169: un | D169: 3 | E169: 188.17 | F169: 564.51
A170: 8.10 | B170: Transformador Trifásico de Distribuição 15 kVA - 13.800 V/ 380-220 V | C170: un | D170: 1 | E170: 4824.43 | F170: 4824.43
A171: 8.11 | B171: Cabo de Cobre com Isolação em PVC 70º C - 0,6/1 kV NBR 7288 - 10 mm² | C171: m | D171: 50 | E171: 5.9 | F171: 295
A172: 8.12 | B172: Cabo de Cobre Nu 25 mm² | C172: m | D172: 65 | E172: 13.27 | F172: 862.55
A173: 8.13 | B173: Cabo de Cobre Flexível com Isolação em PVC 70º C - 0,6/1 kV NBR 7288 - 10 mm² | C173: m | D173: 80 | E173: 5.9 | F173: 472
A174: 8.14 | B174: Grupo Gerador Diesel - 20 kVA com Quadro de Transferência Automático | C174: un | D174: 1 | E174: 27850.3 | F174: 27850.3
A175: 8.15 | B175: Extintor de Incêdio CO2 - 6 kg | C175: un | D175: 2 | E175: 561.12 | F175: 1122.24
A176: 8.16 | B176: Painel QS/ CCM - 380 V para Motores de 2 x 5 cv com CLP e Inversores de Frequência | C176: un | D176: 1 | E176: 12794.62 | F176: 12794.62
A177: 8.17 | B177: Sensor de Nível Ultrassônico com cabo | C177: un | D177: 1 | E177: 5937.75 | F177: 5937.75
A178: 8.18 | B178: Cabo de Cobre Flexível com Isolação em PVC 70º C - 0,6/1 kV NBR 7288 - 4,0 mm² | C178: m | D178: 80 | E178: 2.69 | F178: 215.2
A179: 8.19 | B179: Cabo de Cobre Flexível com Isolação em PVC 70º C - 0,6/1 kV NBR 7288 - 1,5 mm² | C179: m | D179: 370 | E179: 1.35 | F179: 499.5
A180: 8.20 | B180: Cabo de Cobre Flexível com Isolação em PVC 70º C - 0,6/1 kV NBR 7288 - 2,5 mm² | C180: m | D180: 120 | E180: 1.88 | F180: 225.6
A181: 8.21 | B181: Poste de Concreto tipo Duplo 'T' - 6m / 100daN | C181: un | D181: 3 | E181: 329.73 | F181: 989.19
A182: 9.0 | B182: Fornecimentos e Instalações Elétricas - EEE - 2 | E182: Subtotal | F182: =SUM(F183:F200) -> 86630.11
A183: 9.1 | B183: Cruzeta de Concreto Tipo "T" de 1,90 m | C183: un | D183: 6 | E183: 162.7 | F183: =ROUND(D183*E183,2) -> 976.2
A184: 9.2 | B184: Cruzeta de Concreto Tipo "T" de 1,70 m | C184: un | D184: 2 | E184: 162.7 | F184: 325.4
A185: 9.3 | B185: Cabo de Alumínio sem alma de aço - CA 4 AWG | C185: kg | D185: 5 | E185: 38.15 | F185: 190.75
A186: 9.4 | B186: Chave Fusível de Distribuição 15 kV - 100 A base:C | C186: un | D186: 6 | E186: 274.72 | F186: 1648.32
A187: 9.5 | B187: Isolador de Disco, 15kV, 140x165mm | C187: un | D187: 12 | E187: 42.39 | F187: 508.68
A188: 9.6 | B188: Poste de Concreto tipo Duplo 'T' - 11 m / 400daN | C188: un | D188: 2 | E188: 1181.19 | F188: 2362.38
A189: 9.7 | B189: Cabo de Cobre com Isolação em PVC 70º C - 0,6/1 kV NBR 7288 - 10 mm² | C189: m | D189: 100 | E189: 5.9 | F189: 590
A190: 9.8 | B190: Cabo de Cobre Nu 25 mm² | C190: m | D190: 69 | E190: 13.27 | F190: 915.63
A191: 9.9 | B191: Pára-raio de Distribuição 12 kV - 5kA | C191: un | D191: 3 | E191: 188.17 | F191: 564.51
A192: 9.10 | B192: TransformadorTrifásico de Distribuição 30 kVA - 13.800 V/ 380-220 V | C192: un | D192: 1 | E192: 5892.69 | F192: 5892.69
A193: 9.11 | B193: Grupo Gerador Diesel - 50 kVA com Quadro de Transferência Automático | C193: un | D193: 1 | E193: 51891.04 | F193: 51891.04
A194: 9.12 | B194: Cabo de Cobre Flexível com Isolação em PVC 70º C - 0,6/1 kV NBR 7288 - 16 mm² | C194: m | D194: 30 | E194: 9.04 | F194: 271.2
A195: 9.13 | B195: Painel QS/ CCM - 380 V para Motores de 2 x 15 cv com CLP e Inversores de Frequência | C195: un | D195: 1 | E195: 12794.62 | F195: 12794.62
A196: 9.14 | B196: Cabo de Cobre Flexível com Isolação em PVC 70º C - 0,6/1 kV NBR 7288 - 6,0 mm² | C196: m | D196: 100 | E196: 3.68 | F196: 368
A197: 9.15 | B197: Sensor de Nível Ultrassônico com cabo | C197: un | D197: 1 | E197: 5937.75 | F197: 5937.75
A198: 9.16 | B198: Cabo de Cobre Flexível com Isolação em PVC 70º C - 0,6/1 kV NBR 7288 - 1,5 mm² | C198: m | D198: 125 | E198: 1.35 | F198: 168.75
A199: 9.17 | B199: Cabo de Cobre Flexível com Isolação em PVC 70º C - 0,6/1 kV NBR 7288 - 2,5 mm² | C199: m | D199: 125 | E199: 1.88 | F199: 235
A200: 9.18 | B200: Poste de Concreto tipo Duplo 'T' - 6m / 100daN | C200: un | D200: 3 | E200: 329.73 | F200: 989.19
... 14 more rows

Sheet cronograma
A1: CRONOGRAMA FISICO FINANCEIRO
B3: EDITAL Nº | C3: =basica!C6 -> 22/2017
B4: DATA | C4: =basica!C8 -> 2017-10-08
A5: SISTEMA DE ESGOTAMENTO SANITÁRIO DO MUNICÍPIO DE CANAPI / AL | G5: 30 | H5: 60 | I5: =G5+H5 -> 90 | J5: 120 | K5: 150 | L5: 180 | M5: 210 | N5: 240 | O5: 270 | P5: 300 | Q5: 330 | R5: 365
A6: PLANILHA RESUMIDA (Data Base: MAR/2017)
A7: Item | B7: CÓDIGO | C7: DESCRIÇÃO | D7: Un. | E7: Quant. | F7: Valor Total (R$)
A9: I | B9: SERVIÇOS
A10: 1.0 | B10: SERVIÇOS PRELIMINARES / CANTEIRO DE OBRAS | F10: ='Plan. Detalhada Serviços'!F8 -> 669784.34 | G10: =F10/12 -> 55815.36167 | H10: 59329.98083 | I10: 59329.98083 | J10: 59329.98083 | K10: 59329.98083 | L10: 59329.98083 | M10: 59329.98083 | N10: 59329.98083 | O10: 59329.98083 | P10: 59329.98083 | Q10: 59329.98083 | R10: 59329.98083
A11: 2.0 | B11: REDE COLETORA CONVENCIONAL / LINHA DE RECALQUE / EMISSÁRIO FINAL | F11: ='Plan. Detalhada Serviços'!F17 -> 2974131.78 | G11: =F11/12 -> 247844.315 | H11: 236275.1908 | I11: 236275.1908 | J11: 236275.1908 | K11: 236275.1908 | L11: 236275.1908 | M11: 236275.1908 | N11: 236275.1908 | O11: 236275.1908 | P11: 236275.1908 | Q11: 236275.1908 | R11: 236275.1908
A12: 3.0 | B12: REDE COLETORA CONDOMINIAL | F12: ='Plan. Detalhada Serviços'!F105 -> 90557.42 | G12: 7546.451667 | H12: 7531.420833 | I12: 7531.420833 | J12: 7531.420833 | K12: 7531.420833 | L12: 7531.420833 | M12: 7531.420833 | N12: 7531.420833 | O12: 7531.420833 | P12: 7531.420833 | Q12: 7531.420833 | R12: 7531.420833
A13: 4.0 | B13: RAMAIS PREDIAIS | F13: ='Plan. Detalhada Serviços'!F133 -> 342836.79 | G13: 28569.7325 | H13: 30393.84167 | I13: 30393.84167 | J13: 30393.84167 | K13: 30393.84167 | L13: 30393.84167 | M13: 30393.84167 | N13: 30393.84167 | O13: 30393.84167 | P13: 30393.84167 | Q13: 30393.84167 | R13: 30393.84167
A14: 5.0 | B14: ESTAÇÕES ELEVATÓRIAS | F14: ='Plan. Detalhada Serviços'!F143 -> 416744.24 | G14: 34728.68667 | H14: 36008.24333 | I14: 36008.24333 | J14: 36008.24333 | K14: 36008.24333 | L14: 36008.24333 | M14: 36008.24333 | N14: 36008.24333 | O14: 36008.24333 | P14: 36008.24333 | Q14: 36008.24333 | R14: 36008.24333
A15: 6.0 | B15: ESTRUTURA DE ENTRADA E DAFA'S | F15: ='Plan. Detalhada Serviços'!F224 -> 107306.09 | G15: 8942.174167 | H15: 9512.375833 | I15: 9512.375833 | J15: 9512.375833 | K15: 9512.375833 | L15: 9512.375833 | M15: 9512.375833 | N15: 9512.375833 | O15: 9512.375833 | P15: 9512.375833 | Q15: 9512.375833 | R15: 9512.375833
A16: 7.0 | B16: LEITO DE SECAGEM | F16: ='Plan. Detalhada Serviços'!F253 -> 46350.81 | G16: 3862.5675 | H16: 4109.160833 | I16: 4109.160833 | J16: 4109.160833 | K16: 4109.160833 | L16: 4109.160833 | M16: 4109.160833 | N16: 4109.160833 | O16: 4109.160833 | P16: 4109.160833 | Q16: 4109.160833 | R16: 4109.160833
A17: 8.0 | B17: LAGOAS FACULTATIVAS | F17: ='Plan. Detalhada Serviços'!F283 -> 780336.84 | G17: 65028.07 | H17: 64677.20167 | I17: 64677.20167 | J17: 64677.20167 | K17: 64677.20167 | L17: 64677.20167 | M17: 64677.20167 | N17: 64677.20167 | O17: 64677.20167 | P17: 64677.20167 | Q17: 64677.20167 | R17: 64677.20167
A18: 9.0 | B18: INSTALAÇÃO ELÉTRICA | F18: ='Plan. Detalhada Serviços'!F341 -> 138758.19 | G18: 11563.1825 | H18: 12301.25917 | I18: 12301.25917 | J18: 12301.25917 | K18: 12301.25917 | L18: 12301.25917 | M18: 12301.25917 | N18: 12301.25917 | O18: 12301.25917 | P18: 12301.25917 | Q18: 12301.25917 | R18: 12301.25917
A19: TOTAL GERAL DOS SERVIÇOS (R$) | F19: =SUM(F10:F18) -> 5566806.5
A20: II | B20: MATERIAIS
A21: 1.0 | B21: REDE COLETORA CONVENCIONAL / LINHA DE RECALQUE / EMISSÁRIO FINAL | F21: ='Plan. Detalhada Materiais'!F8 -> 230712.56 | G21: 19226.04667 | H21: 20452.46833 | I21: 20452.46833 | J21: 20452.46833 | K21: 20452.46833 | L21: 20452.46833 | M21: 20452.46833 | N21: 20452.46833 | O21: 20452.46833 | P21: 20452.46833 | Q21: 20452.46833 | R21: 20452.46833
A22: 2.0 | B22: REDE COLETORA CONDOMINIAL | F22: ='Plan. Detalhada Materiais'!F24 -> 27183.36 | G22: 2265.28 | H22: 2409.615 | I22: 2409.615 | J22: 2409.615 | K22: 2409.615 | L22: 2409.615 | M22: 2409.615 | N22: 2409.615 | O22: 2409.615 | P22: 2409.615 | Q22: 2409.615 | R22: 2409.615
A23: 3.0 | B23: RAMAIS PREDIAIS | F23: ='Plan. Detalhada Materiais'!F27 -> 35054.82 | G23: 2921.235 | H23: 3107.821667 | I23: 3107.821667 | J23: 3107.821667 | K23: 3107.821667 | L23: 3107.821667 | M23: 3107.821667 | N23: 3107.821667 | O23: 3107.821667 | P23: 3107.821667 | Q23: 3107.821667 | R23: 3107.821667
A24: 4.0 | B24: ESTAÇÕES ELEVATÓRIAS (EEE-1/EEE-2) | F24: ='Plan. Detalhada Materiais'!F33 -> 179721.56 | G24: 14976.79667 | H24: 15932.80833 | I24: 15932.80833 | J24: 15932.80833 | K24: 15932.80833 | L24: 15932.80833 | M24: 15932.80833 | N24: 15932.80833 | O24: 15932.80833 | P24: 15932.80833 | Q24: 15932.80833 | R24: 15932.80833
A25: 5.0 | B25: ESTRUTURA DE ENTRADA E DAFA'S | F25: ='Plan. Detalhada Materiais'!F116 -> 63931.59 | G25: 5327.6325 | H25: 5667.791667 | I25: 5667.791667 | J25: 5667.791667 | K25: 5667.791667 | L25: 5667.791667 | M25: 5667.791667 | N25: 5667.791667 | O25: 5667.791667 | P25: 5667.791667 | Q25: 5667.791667 | R25: 5667.791667
A26: 6.0 | B26: LEITOS DE SECAGEM | F26: ='Plan. Detalhada Materiais'!F150 -> 1161.63 | G26: 96.8025 | H26: 102.9775 | I26: 102.9775 | J26: 102.9775 | K26: 102.9775 | L26: 102.9775 | M26: 102.9775 | N26: 102.9775 | O26: 102.9775 | P26: 102.9775 | Q26: 102.9775 | R26: 102.9775
A27: 7.0 | B27: LAGOAS FACULTATIVAS | F27: ='Plan. Detalhada Materiais'!F155 -> 12500.16 | G27: 1041.68 | H27: 1108.1725 | I27: 1108.1725 | J27: 1108.1725 | K27: 1108.1725 | L27: 1108.1725 | M27: 1108.1725 | N27: 1108.1725 | O27: 1108.1725 | P27: 1108.1725 | Q27: 1108.1725 | R27: 1108.1725
A28: 8.0 | B28: Fornecimentos e Instalações Elétricas - EEE - 1 | F28: ='Plan. Detalhada Materiais'!F160 -> 69323.62 | G28: 5776.968333 | H28: 6145.859167 | I28: 6145.859167 | J28: 6145.859167 | K28: 6145.859167 | L28: 6145.859167 | M28: 6145.859167 | N28: 6145.859167 | O28: 6145.859167 | P28: 6145.859167 | Q28: 6145.859167 | R28: 6145.859167
A29: 9.0 | B29: Fornecimentos e Instalações Elétricas - EEE - 2 | F29: ='Plan. Detalhada Materiais'!F182 -> 86630.11 | G29: 7219.175833 | H29: 7680.034167 | I29: 7680.034167 | J29: 7680.034167 | K29: 7680.034167 | L29: 7680.034167 | M29: 7680.034167 | N29: 7680.034167 | O29: 7680.034167 | P29: 7680.034167 | Q29: 7680.034167 | R29: 7680.034167
A30: 10.0 | B30: Fornecimentos e Instalações Elétricas - ETE | F30: ='Plan. Detalhada Materiais'!F201 -> 3494.2 | G30: 291.1833333 | H30: 309.8166667 | I30: 309.8166667 | J30: 309.8166667 | K30: 309.8166667 | L30: 309.8166667 | M30: 309.8166667 | N30: 309.8166667 | O30: 309.8166667 | P30: 309.8166667 | Q30: 309.8166667 | R30: 309.8166667
A31: TOTAL GERAL DOS MATERIAIS (R$): | F31: =SUM(F21:F30) -> 709713.61
A32: TOTAL GERAL DOS SERVIÇOS E MATERIAIS (R$): | F32: =F31+F19 -> 6276520.11 | G32: =SUM(G10:G30) -> 523043.3425 | H32: =SUM(H10:H30) -> 523056.04 | I32: 523056.04 | J32: 523056.04 | K32: 523056.04 | L32: 523056.04 | M32: 523056.04 | N32: 523056.04 | O32: 523056.04 | P32: 523056.04 | Q32: 523056.04 | R32: 523056.04
D37: =basica!C81 -> GIL DO NASCIMENTO SANTOS
D38: =basica!C82 -> RN-26130304432
